Cogmind - Beta 13 @@@ ROGUE MODE // 2024.06.29 @ 02:42:15 Player: Sionnis Result: Destroyed self with Supercharged Sigix Terminator Performance ------------- Evolutions (9) 4500 Regions Visited (34) 6800 Robots Destroyed (182) 910 Value Destroyed (5675) 5675 Prototype IDs (70) 1400 Alien Tech Used (13) 2600 Bonus (8390) 8390 TOTAL SCORE: 30275 Bonus ------- High Alert Combat Kills 296 Follower Combat Kills 1271 Network Hubs Disabled 400 Met Data Miner 300 Met Zhirov 300 Met Warlord at Base 500 MAIN.C Attacked Warlord 500 Built Enhanced Grunts 300 A7 Reached Mainframe 300 Met R17 at Cetus 500 Hacked Protovariant 500 Met Warlord at Research 2000 Met Warlord at Command 2000 Friendly Fire -777 Cogmind --------- Core Integrity 0/1600 Matter 114/300 Energy 100/100 System Corruption 14% Temperature Cool (39) Movement Flying (23) Location -1/Command Parts ------- > --- POWER (2) -------- (None) > --- PROPULSION (6) --- Electron Diverter Electron Diverter Cooled Q-thruster > --- UTILITY (15) ----- Experimental Heat Sink Large Storage Unit Advanced Gravity Neutralizer Machine Analyzer Enhanced Optical Array Antimissile System Advanced Hacking Suite Ghost Barrier > --- WEAPON (2) ------- (None) > --- INVENTORY (19) --- Backup Power VII Light Quantum Reactor Cooled Q-thruster Cooled Q-thruster Compact Matter Pod (150) Stasis Canceller Antimissile System Integrity Redistributor Terrabomb Compact HERF Cannon Enhanced Nova Cannon Z-bomb Delivery System Advanced Datajack Advanced Remote Datajack Peak State ------------ > --- POWER ------------ Backup Power VII Backup Power VII > --- PROPULSION ------- Electron Diverter Electron Diverter Improved Diametric Drive Cooled Q-thruster Cooled Q-thruster Cooled Q-thruster > --- UTILITY ---------- Experimental Heat Sink Large Storage Unit Advanced Energy Well Advanced Gravity Neutralizer Machine Analyzer Enhanced Optical Array Improved Power Shielding Antimissile System Antimissile System Advanced Hacking Suite Experimental Hacking Suite System Mapper Ghost Barrier Microwarp Drive > --- WEAPON ----------- Supercharged Sigix Terminator > --- INVENTORY -------- Backup Power VII Light Quantum Reactor Cooled Q-thruster Cooled Q-thruster Compact Matter Pod Stasis Canceller Integrity Redistributor Terrabomb Terrabomb Compact HERF Cannon Enhanced Nova Cannon Z-bomb Delivery System Advanced Datajack Advanced Remote Datajack [Rating: 223] Favorites ----------- Power Backup Power VII Engine Backup Power III Power Core Backup Power VII Reactor Light Quantum Reactor Propulsion Electron Diverter Treads Light Treads Hover Unit Improved Gravmag System Flight Unit Electron Diverter Utility Advanced Hacking Suite Device Advanced Sensor Array Storage Medium Storage Unit Processor Enhanced Optical Array Hackware Advanced Hacking Suite Protection Experimental Utility Shielding Artifact Microwarp Drive Weapon Scythe Energy Gun Spread Laser Energy Cannon Neutron Cannon Ballistic Gun Shotgun Ballistic Cannon Antimatter Cannon Launcher Z-bomb Delivery System Special Weapon Advanced Remote Datajack Impact Weapon Flail Slashing Weapon Scythe Piercing Weapon Lance Special Melee Weapon Improved Datajack Build | -11 -10 -9 -9 -8 -7 -7 -7 -7 -7 -6 -6 -6 -6 -6 -6 -6 -6 -5 -5 -5 -5 -4 -4 -4 -4 -4 -3 -3 -3 -2 -2 -2 -1 -1 ------- Run | Yrd Mat Mat Min Mat Fac Was Fac Low Dat Pro Fac Was Fac Ext Cet Arc Hub Fac Upp Upp Zhi Pro Fac Upp Upp War Pro Res Tes Res Qua Sec Acc Com Slots Evolved 18 | . . 2 . 2 2 . . . . . 2 . . . . . . 2 . . . . 2 . . . . 2 . 2 . . 2 . Power 1 | . . . . . . . . . . . . . . . . . . 1 . . . . . . . . . . . . . . . . Propulsion 4 | . . 1 . 1 . . . . . . . . . . . . . 1 . . . . . . . . . . . 1 . . . . Utility 13 | . . 1 . 1 2 . . . . . 2 . . . . . . . . . . . 2 . . . . 2 . 1 . . 2 . Weapon . | . . . . . . . . . . . . . . . . . . . . . . . . . . . . . . . . . . . Parts Attached 381 | 2 10 9 6 24 12 . 30 . 1 . 20 . 13 15 2 5 16 46 5 3 5 3 7 4 1 17 2 28 36 7 16 10 12 14 Power 44 | . 4 1 2 2 . . 1 . . . 2 . 2 1 . 1 2 5 2 . . 1 . 1 1 7 . 3 2 . . 1 3 . Engine 14 | . 4 1 1 1 . . . . . . 1 . 1 1 . . . 2 1 . . . . . . 1 . . . . . . . . Core 27 | . . . 1 1 . . 1 . . . 1 . 1 . . 1 2 3 1 . . 1 . 1 1 5 . 3 2 . . 1 1 . Reactor 3 | . . . . . . . . . . . . . . . . . . . . . . . . . . 1 . . . . . . 2 . Propulsion 91 | 2 1 5 2 10 2 . 11 . . . 2 . 1 5 . 2 4 13 1 . . . . 2 . . 1 11 3 3 4 . 1 5 Treads 24 | 2 1 5 2 6 . . . . . . . . . 5 . 2 1 . . . . . . . . . . . . . . . . . Leg . | . . . . . . . . . . . . . . . . . . . . . . . . . . . . . . . . . . . Wheel . | . . . . . . . . . . . . . . . . . . . . . . . . . . . . . . . . . . . Hover 1 | . . . . . . . 1 . . . . . . . . . . . . . . . . . . . . . . . . . . . Flight 66 | . . . . 4 2 . 10 . . . 2 . 1 . . . 3 13 1 . . . . 2 . . 1 11 3 3 4 . 1 5 Utility 191 | . 3 1 1 8 9 . 13 . 1 . 14 . 10 6 1 2 9 19 2 2 3 2 5 1 . 9 1 13 24 3 8 9 6 6 Device 70 | . . . . 3 2 . 9 . . . 4 . 5 1 . . 3 10 . 2 1 1 2 . . 4 1 3 6 2 3 2 2 4 Storage 13 | . 2 . . 3 . . . . . . 1 . . 1 . 1 1 1 . . . . . . . . . 1 . . . . 1 1 Processor 19 | . 1 . . . 1 . 1 . . . 3 . . . . . 2 1 . . . . 2 . . 2 . 2 2 . . . 1 1 Hackware 28 | . . . . 2 2 . . . 1 . 2 . 3 . . . 2 4 1 . 1 . . 1 . 2 . 2 4 1 . . . . Protection 60 | . . 1 1 . 4 . 3 . . . 4 . 2 4 1 1 1 3 1 . 1 1 1 . . 1 . 5 12 . 5 6 2 . Artifact 1 | . . . . . . . . . . . . . . . . . . . . . . . . . . . . . . . . 1 . . Weapon 55 | . 2 2 1 4 1 . 5 . . . 2 . . 3 1 . 1 9 . 1 2 . 2 . . 1 . 1 7 1 4 . 2 3 Energy Gun 6 | . . 1 . . . . . . . . . . . . . . . 1 . . . . 1 . . . . . 3 . . . . . Energy Cannon 8 | . . . . . . . . . . . . . . . 1 . . . . . . . . . . . . 1 2 1 2 . . 1 Ballistic Gun 7 | . 2 1 1 2 . . . . . . . . . . . . . . . . 1 . . . . . . . . . . . . . Ballistic Cannon 5 | . . . . . . . . . . . . . . 3 . . 1 1 . . . . . . . . . . . . . . . . Launcher 14 | . . . . . . . 3 . . . 1 . . . . . . 2 . 1 1 . . . . . . . 2 . 2 . . 2 Special Weapon 1 | . . . . . . . . . . . . . . . . . . . . . . . . . . . . . . . . . 1 . Impact Weapon 4 | . . . . . . . . . . . . . . . . . . 4 . . . . . . . . . . . . . . . . Slashing Weapon 6 | . . . . 1 1 . 2 . . . 1 . . . . . . . . . . . . . . 1 . . . . . . . . Piercing Weapon 3 | . . . . 1 . . . . . . . . . . . . . 1 . . . . . . . . . . . . . . 1 . Special Melee Weapon 1 | . . . . . . . . . . . . . . . . . . . . . . . 1 . . . . . . . . . . . Unidentified Prototypes 44 | . . . . . . . 1 . 1 . 1 . . 1 2 1 . 1 . . 1 . 1 . . 6 . 3 14 2 2 6 . 1 Parts Lost 65 | . . . . . 4 . 6 . . . 1 . 1 . 1 . . 19 . . . 2 3 . . 1 2 . 1 . 1 6 3 14 Power 12 | . . . . . 1 . . . . . 1 . 1 . . . . 4 . . . 1 . . . . . . . . . 2 . 2 Propulsion 21 | . . . . . 1 . 4 . . . . . . . . . . 6 . . . . 2 . . 1 2 . . . . . 1 4 Utility 26 | . . . . . 2 . 1 . . . . . . . 1 . . 8 . . . . 1 . . . . . 1 . 1 3 1 7 Weapon 6 | . . . . . . . 1 . . . . . . . . . . 1 . . . 1 . . . . . . . . . 1 1 1 Highest Loss Streak 12 | . . . . . 1 . 2 . . . 1 . 1 . 1 . . 5 . . . 1 3 . . 1 2 . 1 . 1 3 2 12 To Critical Strikes . | . . . . . . . . . . . . . . . . . . . . . . . . . . . . . . . . . . . Average Slot Usage (%) 93 | . 92 86 100 96 89 92 88 92 92 92 91 93 92 97 99 100 98 86 94 93 94 92 91 98 100 96 91 98 98 99 99 97 88 94 Engine 4 | . 11 11 10 8 2 7 3 . . . 3 . 1 5 6 5 . 3 5 5 5 4 . . . 1 5 1 . . . . . . Core 3 | . . . . . 1 . 3 7 7 7 2 6 4 . . . 6 2 5 5 5 5 5 10 10 6 5 6 9 8 8 8 4 6 Treads 9 | . 28 29 33 33 . . . . . . . . . 17 20 20 16 . . . . . . . . . . . . . . . . . Flight 17 | . . . . . 29 30 26 30 30 30 26 26 25 8 6 6 9 27 29 29 29 29 25 26 26 25 23 22 22 26 25 26 22 23 Device 5 | . . . . 7 6 7 9 7 7 7 5 6 5 . . . 4 5 5 6 7 5 6 5 5 5 5 8 9 11 13 12 9 8 Storage 6 | . 12 11 11 9 7 7 7 7 7 7 6 6 6 6 6 6 6 2 5 5 5 5 5 5 5 5 5 4 4 4 4 4 4 7 Processor 11 | . 11 11 11 8 4 7 14 15 15 15 13 13 13 13 13 13 14 10 5 5 5 5 14 15 15 15 15 13 9 8 8 7 5 7 Hackware 14 | . . . . . 22 15 9 7 7 15 19 26 25 20 20 20 21 19 17 17 17 17 15 19 21 16 15 20 21 17 17 17 16 16 Protection 6 | . . 1 11 8 . . 2 7 7 . 4 . . 10 12 13 5 1 11 9 9 10 8 5 5 8 10 7 9 13 11 11 11 10 Energy Gun 1 | . . 10 11 . . . . . . . . . . . . . . 1 . . . . . . . 2 . . 2 3 . . . . Energy Cannon 1 | . . . . . . . . . . . . . . . 1 6 5 . . . . . . . . . . 3 . . 3 4 2 . Ballistic Gun 3 | . 26 11 11 17 . . . . . . . . . . . . . . . . . . . . . . . . . . . . . . Ballistic Cannon 1 | . . . . . . . . . . . . . . 11 11 6 5 2 . . . . . . . . . . . . . . . . Slashing Weapon 2 | . . . . . 11 15 7 7 7 7 5 6 6 . . . . . . . . . . . . 3 5 4 4 4 4 3 . . Naked Turns . | . . . . . . . . . . . . . . . . . . . . . . . . . . . . . . . . . . . Heaviest Build 80 | . 31 40 41 65 20 17 26 19 19 17 23 20 23 75 80 80 77 33 35 35 41 33 23 35 35 36 25 47 52 49 52 54 71 67 Greatest Support 84 | 40 40 60 60 80 20 20 23 20 20 26 26 26 30 84 76 76 76 34 36 36 36 36 36 36 36 36 34 49 57 60 67 71 73 79 Greatest Overweight (x) 7 | . . . . 1 4 . 1 . . . 4 . . . 1 1 2 3 . . 1 . 7 . . . . . 1 . . 1 . . Average Overweight (x) . | . . . . . . . . . . . . . . . . . . . . . . . . . . . . . . . . . . . Largest Inventory Capacity 20 | 5 15 15 15 20 10 10 10 10 10 10 10 10 10 20 20 20 20 10 10 10 10 10 10 10 10 10 10 15 15 15 15 19 19 19 Average Capacity 13 | 5 14 15 15 16 10 10 10 10 10 10 10 10 10 18 20 20 18 6 10 10 10 10 10 10 10 10 10 14 15 15 15 16 19 19 Most Carried 20 | . 14 15 15 18 10 10 10 10 10 10 10 10 10 20 20 20 20 10 9 10 10 10 10 9 10 10 10 14 15 14 15 19 19 19 Average Carried 12 | . 9 14 14 15 9 10 9 10 9 10 9 10 9 17 20 19 18 5 8 9 9 9 9 7 9 9 9 11 14 13 14 15 17 18 Final Capacity 20 | 5 15 15 15 10 10 10 10 10 10 10 10 10 10 20 20 20 10 10 10 10 10 10 10 10 10 10 10 15 15 15 15 19 19 19 Final Carried 20 | . 13 15 15 8 10 10 10 10 10 10 10 10 10 20 20 20 9 9 9 10 9 10 10 9 10 10 9 13 15 14 15 18 18 14 Class Distribution -------------------- 20% | Hacker-Scout 16% | Wizard-Scout 15% | Mutant 13% | Hacker-Mutant 11% | Hacker-Sprinter 4% | Scavenger-Mutant 4% | Wizard-Sprinter 3% | Scavenger-Scout 3% | Hacker-Skirmisher Dominant Class ---------------- Mutant | -10/Materials Mutant | -9/Materials Scavenger-Mutant | -9/Mines Mutant | -8/Materials Hacker-Sprinter | -7/Factory Hacker-Sprinter | -7/Waste Scavenger-Scout | -7/Factory Machinist-Scout | -7/Lower Caves Machinist-Scout | -7/Data Miner Hacker-Scout | -6/Proximity Caves Hacker-Scout | -6/Factory Hacker-Scout | -6/Waste Wizard-Scout | -6/Factory Hacker-Mutant | -6/Extension Hacker-Mutant | -6/Cetus Hacker-Mutant | -6/Archives Hacker-Skirmisher | -6/Hub_04(d) Hacker-Scout | -5/Factory Hacker-Sprinter | -5/Upper Caves Hacker-Sprinter | -5/Upper Caves Hacker-Sprinter | -5/Zhirov Hacker-Sprinter | -4/Proximity Caves Hacker-Scout | -4/Factory Hacker-Scout | -4/Upper Caves Hacker-Scout | -4/Upper Caves Hacker-Scout | -4/Warlord Hacker-Scout | -3/Proximity Caves Hacker-Scout | -3/Research Wizard-Scout | -3/Testing Wizard-Scout | -2/Research Wizard-Scout | -2/Quarantine Wizard-Scout | -2/Section 7 Wizard-Sprinter | -1/Access Wizard-Sprinter | -1/Command Resources | -11 -10 -9 -9 -8 -7 -7 -7 -7 -7 -6 -6 -6 -6 -6 -6 -6 -6 -5 -5 -5 -5 -4 -4 -4 -4 -4 -3 -3 -3 -2 -2 -2 -1 -1 ----------- Run | Yrd Mat Mat Min Mat Fac Was Fac Low Dat Pro Fac Was Fac Ext Cet Arc Hub Fac Upp Upp Zhi Pro Fac Upp Upp War Pro Res Tes Res Qua Sec Acc Com Matter Collected 6464 | 179 393 251 80 613 137 . 304 50 . 10 251 . 157 410 162 301 145 687 110 30 40 54 21 75 10 141 . 314 312 204 162 353 37 471 Remotely . | . . . . . . . . . . . . . . . . . . . . . . . . . . . . . . . . . . . Salvage Created 6244 | . 517 419 93 726 75 . 298 . 22 . 308 . 152 409 84 172 309 440 . . 432 63 91 . . . . 337 231 111 162 407 100 286 Parts 387 | . 49 38 6 50 7 . 26 . 2 . 25 . 13 16 4 10 26 18 . . 1 7 1 . . . . 20 12 3 15 18 9 11 Haulers Intercepted 14 | . 2 1 . 3 . . 1 . . . . . 1 2 . . . 1 . . . . 1 . . . . 1 . 1 . . . . Recyclers Shooed 6 | . . 2 . . . . 1 . . . . . . . . . . 1 . . . . . . . . . . . . . . . 2 Parts Field Recycled . | . . . . . . . . . . . . . . . . . . . . . . . . . . . . . . . . . . . Retrieved Matter . | . . . . . . . . . . . . . . . . . . . . . . . . . . . . . . . . . . . Parts Self-Destructed 13 | . . . . . . . . 5 . . . . . . . . . . . . . 4 . . 4 . . . . . . . . . Prevented . | . . . . . . . . . . . . . . . . . . . . . . . . . . . . . . . . . . . Kills | -11 -10 -9 -9 -8 -7 -7 -7 -7 -7 -6 -6 -6 -6 -6 -6 -6 -6 -5 -5 -5 -5 -4 -4 -4 -4 -4 -3 -3 -3 -2 -2 -2 -1 -1 ------- Run | Yrd Mat Mat Min Mat Fac Was Fac Low Dat Pro Fac Was Fac Ext Cet Arc Hub Fac Upp Upp Zhi Pro Fac Upp Upp War Pro Res Tes Res Qua Sec Acc Com Combat Hostiles Destroyed 89 | . 16 11 4 13 . . 7 . . . 5 . . 5 1 1 6 4 . . . 5 . . . . . . . . 3 . 1 7 Melee 8 | . . . . . . . 1 . . . 1 . . . . . . 2 . . . 1 . . . . . . . . . . 1 2 Guns 45 | . 16 11 4 13 . . . . . . . . . . . . . 1 . . . . . . . . . . . . . . . . Cannons 15 | . . . . . . . . . . . . . . 5 1 1 6 1 . . . . . . . . . . . . 1 . . . AOE 21 | . . . . . . . 6 . . . 4 . . . . . . . . . . 4 . . . . . . . . 2 . . 5 Classes Destroyed 16 | . 6 2 1 2 . . 1 . . . . . . . . . 2 . . . . . . . . . . . . . . 1 . 1 Worker 10 | . 1 . . 1 . . . . . . . . 2 . . . 3 2 . . . . . . . . . . . . . . . 1 Builder 6 | . . . . . . . . . . . . . . . . . 3 1 . . . . . . . . . 2 . . . . . . Tunneler 2 | . . . . . . . . . . . . . . . . . 1 1 . . . . . . . . . . . . . . . . Hauler 14 | . 2 1 . 3 . . 1 . . . . . 1 2 . . . 1 . . . . 1 . . . . 1 . 1 . . . . Recycler 10 | . . . . 1 . . 1 . . . 1 . . . . . . 1 . . . . . . . . . 1 1 . . 3 . 1 Carrier 1 | . . . . . . . . . . . . . . . . . . . . . . . . . . . . . . . . . . 1 Operator 20 | . 2 2 . 2 2 . . . . . . . . . . 9 . . . . . . . . . . . 1 . . 2 . . . Watcher 28 | . 1 2 . 1 1 . 4 . . . 3 . 1 1 1 . 2 4 . . . . . . . . . 1 3 . 2 . 1 . Swarmer 38 | . 9 3 3 2 . . 6 . . . 3 . . . . . 4 3 . . . 5 . . . . . . . . . . . . Grunt 23 | . 7 4 . 5 . . . . . . 1 . . 1 . . 2 . . . . . . . . . . . . . . . . 3 Brawler 1 | . . . 1 . . . . . . . . . . . . . . . . . . . . . . . . . . . . . . . Duelist 1 | . . 1 . . . . . . . . . . . . . . . . . . . . . . . . . . . . . . . . Researcher 1 | . . . . . . . . . . . . . . . . . . . . . . . . . . . . . . . . 1 . . Sentry 13 | . . 3 . 5 . . . . . . . . . 4 . 1 . . . . . . . . . . . . . . . . . . Hunter 3 | . . . . 1 . . . . . . . . . . . . . . . . . . . . . . . . . . . . . 2 Programmer 9 | . . . . . . . 1 . . . 1 . . . . . . 1 . . . . . . . . . . . . 3 . 1 2 Cetus Guard 1 | . . . . . . . . . . . . . . . 1 . . . . . . . . . . . . . . . . . . . Best Kill Streak 8 | . 3 5 4 7 1 . 4 . 1 . 4 . 2 2 2 2 8 3 . . . 5 1 . . . . 2 1 1 2 2 2 5 Combat Bots Only 6 | . 3 3 4 6 . . 3 . . . 4 . . 2 1 1 2 2 . . . 5 . . . . . . . . 2 . 1 4 Max Kills in Single Turn 7 | . 2 1 1 2 1 . 2 . 1 . 2 . 1 2 1 1 7 3 . . . 4 1 . . . . 1 1 1 1 1 1 5 Gunslinging 1 | . 1 . . . . . . . . . . . . . . . . . . . . . . . . . . . . . . . . . Exploded 4 | . . . . . . . 2 . . . 2 . . . . . . . . . . 4 . . . . . . . . 1 . . 4 Melee 1 | . . . . . . . 1 . . . 1 . . . . . . 1 . . . 1 . . . . . . . . . . 1 1 Uniques/NPCs Destroyed 1 | . . . . . . . . . 1 . . . . . . . . . . . . . . . . . . . . . . . . . Data Miner (-7/Data Miner) Combat | -11 -10 -9 -9 -8 -7 -7 -7 -7 -7 -6 -6 -6 -6 -6 -6 -6 -6 -5 -5 -5 -5 -4 -4 -4 -4 -4 -3 -3 -3 -2 -2 -2 -1 -1 -------- Run | Yrd Mat Mat Min Mat Fac Was Fac Low Dat Pro Fac Was Fac Ext Cet Arc Hub Fac Upp Upp Zhi Pro Fac Upp Upp War Pro Res Tes Res Qua Sec Acc Com Hostile Shots Fired 1203 | . 40 29 10 48 87 . 93 . . . 54 . 13 162 . 1 44 223 4 1 . 22 25 . . 24 24 12 22 . 31 47 67 120 Missed 586 | . 12 5 6 14 51 . 53 . . . 28 . 8 77 . 1 13 110 3 1 . 9 16 . . 18 12 7 16 . 13 28 29 56 Intercepted 3 | . . . . . . . . . . . . . . . . . . . . . . . . . . . . . . . . . . 3 Damage Taken 14231 | . 258 332 45 343 351 . 571 . . . 353 . 75 975 60 . 643 2556 16 . . 310 227 . . 110 269 172 303 . 549 1094 1088 3531 Core 4262 | . 40 69 . 39 121 . 180 . . . 159 . 18 128 30 . 130 759 . . . 26 21 . . 25 165 28 105 . 125 365 445 1284 Absorbed by Shields 237 | . . . . 132 . . . . . . . . . 45 . . . . . . . . . . . . . . . . . . . 60 Redirected to Shielding 2038 | . . . . . . . 9 . . . 32 . 12 77 . . . 207 . . . 125 93 . . . 14 54 106 . 247 192 244 626 Regen/Repaired (Parts) 1736 | . . . . . . . 11 . . . 141 . 32 . . . . 151 . . . . . . . 44 . 164 197 . 167 93 99 637 Core Remaining (%) 72 | 100 84 . 82 92 . . . . . 57 . . . . . . 45 . . . . 21 . . . . 81 . 89 . . 77 . . Volleys Fired 306 | . 38 31 5 41 . . 6 . . . 4 . . 20 9 39 33 39 . . . 1 . . . . . 2 7 3 8 9 . 11 Largest 2 | . 2 2 2 2 . . 1 . . . 1 . . 2 2 2 2 1 . . . 1 . . . . . 1 1 1 1 1 . 1 Hottest 130 | . 46 88 88 56 . . 39 . . . 39 . . 80 80 130 130 65 . . . 43 . . . . . 105 80 130 130 130 . 94 Shots Fired 503 | . 76 60 10 82 . . 6 . . . 4 . . 38 20 70 54 39 . . . 1 . . . . . 2 7 3 10 10 . 11 Gun 256 | . 76 60 10 82 . . . . . . . . . . . . . 22 . . . . . . . . . . 6 . . . . . Cannon 229 | . . . . . . . . . . . . . . 38 20 70 54 17 . . . . . . . . . 2 . 3 8 10 . 7 Launcher 18 | . . . . . . . 6 . . . 4 . . . . . . . . . . 1 . . . . . . 1 . 2 . . 4 Special . | . . . . . . . . . . . . . . . . . . . . . . . . . . . . . . . . . . . Kinetic 337 | . 76 29 5 82 . . . . . . . . . 38 20 39 31 17 . . . . . . . . . . . . . . . . Thermal 120 | . . 31 5 . . . . . . . . . . . . 31 23 . . . . . . . . . . 2 6 3 8 10 . 1 Explosive 17 | . . . . . . . 6 . . . 4 . . . . . . . . . . 1 . . . . . . 1 . 2 . . 3 Electromagnetic 29 | . . . . . . . . . . . . . . . . . . 22 . . . . . . . . . . . . . . . 7 Robot Hit Streak 14 | . 6 14 4 12 . . 1 . . . . . . 4 5 8 9 6 . . . . . . . . . . . . 5 2 . 4 Robot Miss Streak 10 | . 8 8 7 10 . . 2 . . . . . . 3 1 4 4 3 . . . . . . . . . . . . 1 1 . 2 Penetration Max . | . . . . . . . . . . . . . . . . . . . . . . . . . . . . . . . . . . . Secondary Targets 5 | . 2 1 2 . . . . . . . . . . . . . . . . . . . . . . . . . . . . . . . Max Gunslinging Chain 1 | . 1 1 1 . . . . . . . . . . . . . . . . . . . . . . . . . . . . . . . Shots Hit Robots 432 | . 50 51 9 74 5 . 16 . 1 . 7 . 9 25 14 41 23 36 . . 13 2 2 . . . . 13 5 1 12 4 6 13 Core Hits 335 | . 35 55 10 94 2 . 15 . 1 . 12 . 2 13 7 22 18 13 . . 4 3 1 . . . . 6 4 1 5 3 3 6 Critical Kills . | . . . . . . . . . . . . . . . . . . . . . . . . . . . . . . . . . . . Critical Parts Destroyed 5 | . . . . . . . . . . . . . . . . . . 5 . . . . . . . . . . . . . . . . Critical Strikes 19 | . . . . . . . 1 . . . . . . 3 1 2 1 7 . . . . . . . . . . . . 1 . . 3 Blast 9 | . . . . . . . . . . . . . . 3 1 2 1 2 . . . . . . . . . . . . . . . . Smash 5 | . . . . . . . . . . . . . . . . . . 5 . . . . . . . . . . . . . . . . Sever 2 | . . . . . . . 1 . . . . . . . . . . . . . . . . . . . . . . . 1 . . . Impale 3 | . . . . . . . . . . . . . . . . . . . . . . . . . . . . . . . . . . 3 Melee Attacks 463 | . . . . 2 31 . 60 . 23 . 62 . 30 6 . . . 56 2 1 13 3 14 . . 10 . 26 27 2 24 27 26 18 Impact 48 | . . . . . . . . . . . . . . . . . . 48 . . . . . . . . . . . . . . . . Slashing 319 | . . . . 1 31 . 60 . 23 . 62 . 30 6 . . . . . . . . . . . . . 26 27 2 24 27 . . Piercing 95 | . . . . 1 . . . . . . . . . . . . . 8 2 1 13 3 13 . . 10 . . . . . . 26 18 Sneak Attacks 30 | . . . . 1 2 . 2 . 1 . 1 . 4 3 . . . 3 . . . . 1 . . . . 5 1 1 . 2 . 3 Combat Hostiles . | . . . . . . . . . . . . . . . . . . . . . . . . . . . . . . . . . . . Follow-up Attacks 1 | . . . . . 1 . . . . . . . . . . . . . . . . . . . . . . . . . . . . . Damage Inflicted 26649 | . 721 728 126 1292 296 . 1403 . 73 . 837 . 452 1157 632 1619 1951 1742 . . 984 500 125 . . . . 805 352 120 1329 316 299 8790 Guns 2942 | . 717 715 126 1230 . . . . . . . . . . . . . 154 . . . . . . . . . . . . . . . . Cannons 4894 | . . . . . . . . . . . . . . 813 632 1564 897 480 . . . . . . . . . . . . 232 160 . 116 Explosions 11762 | . . . . . . . 762 . . . 554 . . . . 55 1043 198 . . . 407 . . . . . . . . 531 . . 8212 Melee 6988 | . . . . 62 296 . 641 . 73 . 283 . 452 309 . . . 910 . . 984 93 125 . . . . 805 352 120 566 156 299 462 Ramming 63 | . 4 13 . . . . . . . . . . . 35 . . 11 . . . . . . . . . . . . . . . . . Kinetic 5635 | . 717 344 67 1230 . . . . . . . . . 813 632 793 559 480 . . . . . . . . . . . . . . . . Thermal 9855 | . . 371 59 . . . . . . . . . . . . 826 375 . . . . . . . . . . . . . 232 160 . 7832 Explosive 2832 | . . . . . . . 762 . . . 554 . . . . . . 198 . . . 407 . . . . . . . . 531 . . 380 Electromagnetic 1276 | . . . . . . . . . . . . . . . . . 1006 154 . . . . . . . . . . . . . . . 116 Impact 833 | . . . . . . . . . . . . . . . . . . 833 . . . . . . . . . . . . . . . . Slashing 4115 | . . . . 62 296 . 641 . 73 . 283 . 452 309 . . . . . . . . . . . . . 805 352 120 566 156 . . Piercing 2040 | . . . . . . . . . . . . . . . . . . 77 . . 984 93 125 . . . . . . . . . 299 462 Highest Corruption 12 | . . . . . . 8 8 . . . 1 6 6 6 6 6 12 5 1 1 1 1 . . . . . . 1 . 2 6 2 12 Average Corruption 4 | . . . . . . 8 3 . . . 1 6 6 6 6 6 9 2 1 1 1 1 . . . . . . 1 . 1 2 1 4 Corruption Purged 16 | . . . . . . . 9 . . . 1 . . . . . . 5 . . . . . . . . . . . . 1 . . . Corruption Blocked . | . . . . . . . . . . . . . . . . . . . . . . . . . . . . . . . . . . . Effects 168 | . . . . . . . 10 . . . . 1 24 28 20 19 27 13 1 . . . . . . . . . 5 . 5 7 1 7 Message Errors 46 | . . . . . . . 5 . . . . . 5 6 6 6 6 3 . . . . . . . . . . 2 . 1 4 1 1 Matter Fused 30 | . . . . . . . . . . . . 1 4 6 5 4 5 2 1 . . . . . . . . . 1 . 1 . . . Heat Flow Errors 16 | . . . . . . . 1 . . . . . 2 3 3 . 6 . . . . . . . . . . . . . . 1 . . Energy Discharges 24 | . . . . . . . 1 . . . . . 5 5 2 2 4 1 . . . . . . . . . . 2 . . . . 2 Parts Rejected 5 | . . . . . . . . . . . . . . 1 . . 1 2 . . . . . . . . . . . . . . . 1 Parts Fused 4 | . . . . . . . . . . . . . 2 1 1 . . . . . . . . . . . . . . . . . . . Data Loss (minor) 18 | . . . . . . . 2 . . . . . 3 4 . 2 2 4 . . . . . . . . . . . . . . . 1 Data Loss (major) 10 | . . . . . . . . . . . . . 2 . 1 4 . 1 . . . . . . . . . . . . . 1 . 1 Misfires 7 | . . . . . . . . . . . . . . 1 2 . 1 . . . . . . . . . . . . . 2 1 . . Alerts 5 | . . . . . . . 1 . . . . . 1 1 . . 1 . . . . . . . . . . . . . 1 . . . Misdirections 1 | . . . . . . . . . . . . . . . . . . . . . . . . . . . . . . . . . . 1 Weapon Failures 2 | . . . . . . . . . . . . . . . . 1 1 . . . . . . . . . . . . . . . . . Overload Shots . | . . . . . . . . . . . . . . . . . . . . . . . . . . . . . . . . . . . Overflow Damage 3641 | . . . . 22 126 . 72 . . . 7 . 57 9 . 123 59 634 . . 288 44 . . . . . 141 29 . 297 55 49 1629 Projectiles 288 | . . . . . . . . . . . . . . 5 . 123 25 48 . . . . . . . . . . . . 32 55 . . Explosions 1702 | . . . . . . . 23 . . . 1 . . . . . 34 4 . . . 26 . . . . . . . . 215 . . 1399 Melee 1651 | . . . . 22 126 . 49 . . . 6 . 57 4 . . . 582 . . 288 18 . . . . . 141 29 . 50 . 49 230 Knockbacks 26 | . . . . . . . . . . . . . . 3 3 5 4 11 . . . . . . . . . . . . . . . . Impact 5 | . . . . . . . . . . . . . . . . . . 5 . . . . . . . . . . . . . . . . Kinetic 19 | . . . . . . . . . . . . . . 2 3 5 4 5 . . . . . . . . . . . . . . . . Secondary 2 | . . . . . . . . . . . . . . 1 . . . 1 . . . . . . . . . . . . . . . . Self-Inflicted Damage 1828 | . . . . . . . . . . . . . . . . . 97 . . . . 71 . . . . . . 170 . . . . 1490 Shots 4 | . . . . . . . . . . . . . . . . . 1 . . . . 1 . . . . . . 1 . . . . 1 Rammed 7 | . 1 2 . . . . . . . . . . . 3 . . 1 . . . . . . . . . . . . . . . . . Targets Rammed 7 | . 1 2 . . . . . . . . . . . 3 . . 1 . . . . . . . . . . . . . . . . . Kicked . | . . . . . . . . . . . . . . . . . . . . . . . . . . . . . . . . . . . Crushed . | . . . . . . . . . . . . . . . . . . . . . . . . . . . . . . . . . . . Highest Temperature 430 | . . 69 48 2 18 . 259 . . 1 21 . 240 192 272 328 331 178 216 327 97 160 2 300 170 120 35 128 106 430 184 175 . 71 Average Temperature 69 | . . 13 17 1 10 . 113 . . 1 11 . 90 29 85 102 111 39 95 203 42 74 2 125 75 32 18 36 21 58 59 50 . 71 Received Heat Transfer 1433 | . 72 93 12 89 138 . 72 . . . 105 . 27 177 . . 126 306 9 . . . 9 . . 21 27 21 21 . 9 54 27 18 Effects 11 | . . . . . . . . . . . . . . . . 3 3 . 2 2 . . . . . . . . . 1 . . . . Shutdowns 2 | . . . . . . . . . . . . . . . . . 1 . . . . . . . . . . . . 1 . . . . Energy Bleed 2 | . . . . . . . . . . . . . . . . . . . . 2 . . . . . . . . . . . . . . Interference 7 | . . . . . . . . . . . . . . . . 3 2 . 2 . . . . . . . . . . . . . . . Siege Activations . | . . . . . . . . . . . . . . . . . . . . . . . . . . . . . . . . . . . Robots Corrupted 1 | . . . . . . . . . . . . . . . . . 1 . . . . . . . . . . . . . . . . . Combat Hostiles . | . . . . . . . . . . . . . . . . . . . . . . . . . . . . . . . . . . . Parts Fried 17 | . . . . . . . . . . . . . . . . . 7 10 . . . . . . . . . . . . . . . . Impact Corruptions 16 | . . . . . . . . . . . . . . 1 . . . 15 . . . . . . . . . . . . . . . . Robots Melted . | . . . . . . . . . . . . . . . . . . . . . . . . . . . . . . . . . . . Combat Hostiles . | . . . . . . . . . . . . . . . . . . . . . . . . . . . . . . . . . . . Parts Melted . | . . . . . . . . . . . . . . . . . . . . . . . . . . . . . . . . . . . Heat Transferred 850 | . . 480 70 . . . . . . . . . . . . 50 50 . . . . . . . . . . . . . 100 100 . . Parts Sabotaged . | . . . . . . . . . . . . . . . . . . . . . . . . . . . . . . . . . . . Parts Stolen . | . . . . . . . . . . . . . . . . . . . . . . . . . . . . . . . . . . . Parts Stripped . | . . . . . . . . . . . . . . . . . . . . . . . . . . . . . . . . . . . Power Chain Reactions 3 | . . . . . . . . . . . . . . . . 1 2 . . . . . . . . . . . . . . . . . Alert | -11 -10 -9 -9 -8 -7 -7 -7 -7 -7 -6 -6 -6 -6 -6 -6 -6 -6 -5 -5 -5 -5 -4 -4 -4 -4 -4 -3 -3 -3 -2 -2 -2 -1 -1 ------- Run | Yrd Mat Mat Min Mat Fac Was Fac Low Dat Pro Fac Was Fac Ext Cet Arc Hub Fac Upp Upp Zhi Pro Fac Upp Upp War Pro Res Tes Res Qua Sec Acc Com Peak Influence 896 | . 274 308 336 353 250 52 543 . . . 320 128 374 276 215 196 662 849 . . . . 310 . . . . 300 216 70 279 461 768 896 Initial 395 | . . 82 120 130 111 52 36 . . . . 98 89 . 11 6 7 324 . . . . 206 . . . . 9 85 63 35 116 276 395 Average 187 | . 117 203 299 197 95 52 302 . . . 139 113 105 115 74 78 154 364 . . . . 235 . . . . 148 93 25 160 235 479 652 Maximum Alert Level 3 | . 1 1 1 1 1 . 2 . . . 1 . 1 1 1 . 2 3 . . . . 1 . . . . 1 1 . 1 2 3 3 Low Security (%) 61 | 100 92 48 9 48 97 100 13 . . . 66 100 83 89 98 100 76 9 . . . . . . . . . 80 79 100 68 51 . . Level 1 31 | . 7 51 90 51 2 . 68 . . . 33 . 16 10 1 . 12 64 . . . . 100 . . . . 19 20 . 31 36 42 1 Level 2 5 | . . . . . . . 17 . . . . . . . . . 11 19 . . . . . . . . . . . . . 12 41 54 Level 3 1 | . . . . . . . . . . . . . . . . . . 6 . . . . . . . . . . . . . . 16 43 Level 4 . | . . . . . . . . . . . . . . . . . . . . . . . . . . . . . . . . . . . Level 5 . | . . . . . . . . . . . . . . . . . . . . . . . . . . . . . . . . . . . High Security . | . . . . . . . . . . . . . . . . . . . . . . . . . . . . . . . . . . . Max Security . | . . . . . . . . . . . . . . . . . . . . . . . . . . . . . . . . . . . Squads Dispatched 93 | . 5 4 1 3 10 . 11 . . . 5 . 6 . . . 9 12 . . . . 3 . . . 1 3 8 3 2 4 2 1 Investigation 53 | . 3 2 1 2 8 . 9 . . . 3 . 5 . . . 2 8 . . . . 1 . . . . 1 2 3 . 2 1 . Extermination 9 | . . . . . . . 1 . . . 1 . . . . . 1 3 . . . . . . . . . . 1 . . 1 1 . Reinforcement 23 | . 2 2 . 1 2 . 1 . . . 1 . 1 . . . 3 1 . . . . 2 . . . . 2 1 . 2 1 . 1 Assault 3 | . . . . . . . . . . . . . . . . . 1 . . . . . . . . . 1 . 1 . . . . . Garrison 5 | . . . . . . . . . . . . . . . . . 2 . . . . . . . . . . . 3 . . . . . Intercept . | . . . . . . . . . . . . . . . . . . . . . . . . . . . . . . . . . . . Searches Triggered 4 | . . . . . . . 1 . . . . . . . . . . 2 . . . . . . . . . . . . . . 1 . Construction Impeded 1 | . . . . . . . . . . . . . . . . . 1 . . . . . . . . . . . . . . . . . Haulers Reinforced 1 | . . . . . . . . . . . . . . . . . 1 . . . . . . . . . . . . . . . . . Active Scanning Responses . | . . . . . . . . . . . . . . . . . . . . . . . . . . . . . . . . . . . Cargo Convoy Interrupts 1 | . . . . . . . . . . . 1 . . . . . . . . . . . . . . . . . . . . . . . Stealth | -11 -10 -9 -9 -8 -7 -7 -7 -7 -7 -6 -6 -6 -6 -6 -6 -6 -6 -5 -5 -5 -5 -4 -4 -4 -4 -4 -3 -3 -3 -2 -2 -2 -1 -1 --------- Run | Yrd Mat Mat Min Mat Fac Was Fac Low Dat Pro Fac Was Fac Ext Cet Arc Hub Fac Upp Upp Zhi Pro Fac Upp Upp War Pro Res Tes Res Qua Sec Acc Com Distress Signals 38 | . . 3 . 1 5 . . . . . 9 . 1 2 2 . 1 . . . . . 1 . . . 1 2 1 2 . 2 3 2 Communications Jammed . | . . . . . . . . . . . . . . . . . . . . . . . . . . . . . . . . . . . Distress Signals . | . . . . . . . . . . . . . . . . . . . . . . . . . . . . . . . . . . . Times Spotted 728 | . 23 16 7 24 46 2 44 1 4 . 34 4 15 18 11 20 15 101 3 5 . 6 12 . 1 11 21 14 15 1 18 47 29 160 Peak Tracking Total 122 | . 4 4 3 6 11 2 7 1 4 . 7 4 9 6 5 1 5 21 3 4 . 5 13 . 1 11 20 4 5 1 5 24 13 122 Tactical Retreats 102 | . 1 1 . 1 10 . 12 1 . . 12 . 4 2 . . 3 25 2 2 . . 1 . . 1 1 2 5 . 2 4 5 5 Traps | -11 -10 -9 -9 -8 -7 -7 -7 -7 -7 -6 -6 -6 -6 -6 -6 -6 -6 -5 -5 -5 -5 -4 -4 -4 -4 -4 -3 -3 -3 -2 -2 -2 -1 -1 ------- Run | Yrd Mat Mat Min Mat Fac Was Fac Low Dat Pro Fac Was Fac Ext Cet Arc Hub Fac Upp Upp Zhi Pro Fac Upp Upp War Pro Res Tes Res Qua Sec Acc Com Traps Triggered 20 | . 3 . . . 2 . 1 . . . 1 . . . . . 1 2 . . . . . . . . . 2 . . 4 1 . 3 Indirectly . | . . . . . . . . . . . . . . . . . . . . . . . . . . . . . . . . . . . Trap Hack Attempts . | . . . . . . . . . . . . . . . . . . . . . . . . . . . . . . . . . . . Triggered . | . . . . . . . . . . . . . . . . . . . . . . . . . . . . . . . . . . . Disarmed . | . . . . . . . . . . . . . . . . . . . . . . . . . . . . . . . . . . . Reprogrammed . | . . . . . . . . . . . . . . . . . . . . . . . . . . . . . . . . . . . Reused . | . . . . . . . . . . . . . . . . . . . . . . . . . . . . . . . . . . . Traps Extracted . | . . . . . . . . . . . . . . . . . . . . . . . . . . . . . . . . . . . Installed . | . . . . . . . . . . . . . . . . . . . . . . . . . . . . . . . . . . . Triggered 11 | . . . . . . . . . . 2 1 . . . . . . . . . . . . . . 8 . . . . . . . . Machines | -11 -10 -9 -9 -8 -7 -7 -7 -7 -7 -6 -6 -6 -6 -6 -6 -6 -6 -5 -5 -5 -5 -4 -4 -4 -4 -4 -3 -3 -3 -2 -2 -2 -1 -1 ---------- Run | Yrd Mat Mat Min Mat Fac Was Fac Low Dat Pro Fac Was Fac Ext Cet Arc Hub Fac Upp Upp Zhi Pro Fac Upp Upp War Pro Res Tes Res Qua Sec Acc Com Machines Disabled 44 | . . . . . . . 6 . 1 . . . . 1 . 2 10 1 . . . . . . . . . . 8 2 5 8 . . Max in Single Turn 8 | . . . . . . . 2 . 1 . . . . . . 1 8 1 . . . . . . . . . . 2 1 1 1 . . Garrison Access 16 | . . . . . 2 . 2 . . . 3 . 3 . . . 1 1 . . . . . . . . . . 1 1 1 1 . . Network Hub 2 | . . . . . . . . . . . . . . . . . 2 . . . . . . . . . . . . . . . . . Machines Repaired . | . . . . . . . . . . . . . . . . . . . . . . . . . . . . . . . . . . . Machines Dismantled . | . . . . . . . . . . . . . . . . . . . . . . . . . . . . . . . . . . . Machines Sabotaged 1 | . . . . . . . . . . . . . . . . . 1 . . . . . . . . . . . . . . . . . Overloaded Fab Kills . | . . . . . . . . . . . . . . . . . . . . . . . . . . . . . . . . . . . Hacking | -11 -10 -9 -9 -8 -7 -7 -7 -7 -7 -6 -6 -6 -6 -6 -6 -6 -6 -5 -5 -5 -5 -4 -4 -4 -4 -4 -3 -3 -3 -2 -2 -2 -1 -1 --------- Run | Yrd Mat Mat Min Mat Fac Was Fac Low Dat Pro Fac Was Fac Ext Cet Arc Hub Fac Upp Upp Zhi Pro Fac Upp Upp War Pro Res Tes Res Qua Sec Acc Com Machines Accessed 199 | . 6 3 2 9 20 . 24 . 2 . 23 . 14 8 1 . 4 18 . . 4 1 4 . . 1 . 6 13 4 9 9 10 4 Terminals 115 | . 6 3 . 7 9 . 12 . . . 13 . 7 8 1 . 3 9 . . . 1 2 . . . . 3 8 1 4 8 7 3 Fabricators 24 | . . . . . 5 . 5 . . . 1 . 3 . . . . 3 . . . . 1 . . . . 1 2 2 . . 1 . Repair Stations 15 | . . . . . 2 . 3 . . . 2 . 1 . . . . 2 . . . . . . . . . 1 1 . 2 . . 1 Recycling Units 13 | . . . . . 2 . 2 . . . 4 . . . . . . 2 . . . . 1 . . . . 1 . . . . 1 . Scanalyzers 7 | . . . . 2 . . . . . . . . . . . . . 1 . . . . . . . . . . 1 . 2 . 1 . Garrison Access 16 | . . . . . 2 . 2 . . . 3 . 3 . . . 1 1 . . . . . . . . . . 1 1 1 1 . . Total Hacks 635 | . 14 7 2 30 48 . 67 . 12 . 62 . 49 16 4 . 8 81 . . 15 2 20 . . 1 . 29 57 13 34 26 25 13 Successful 384 | . 5 2 2 7 32 . 34 . 12 . 33 . 36 9 1 . 5 44 . . 15 2 8 . . 1 . 19 41 10 22 16 19 9 Failed 251 | . 9 5 . 23 16 . 33 . . . 29 . 13 7 3 . 3 37 . . . . 12 . . . . 10 16 3 12 10 6 4 Catastrophic 30 | . . 1 . 1 . . 5 . . . 5 . 4 . . . . 10 . . . . 1 . . . . 1 . . 1 . . 1 Database Lockouts . | . . . . . . . . . . . . . . . . . . . . . . . . . . . . . . . . . . . Manual 259 | . 14 5 . 22 18 . 28 . . . 27 . 25 3 1 . 7 27 . . . . 10 . . 1 . 10 24 7 7 9 10 4 Terminals 389 | . 14 7 . 23 26 . 34 . . . 39 . 33 16 4 . 7 46 . . . 2 8 . . . . 14 38 7 18 25 16 12 Fabricators 83 | . . . . . 12 . 17 . . . 2 . 9 . . . . 16 . . . . 8 . . . . 3 8 5 . . 3 . Repair Stations 65 | . . . . . 4 . 9 . . . 11 . 4 . . . . 10 . . . . . . . . . 11 7 . 8 . . 1 Recycling Units 25 | . . . . . 3 . 4 . . . 6 . . . . . . 6 . . . . 4 . . . . 1 . . . . 1 . Scanalyzers 21 | . . . . 7 . . . . . . . . . . . . . 2 . . . . . . . . . . 1 . 6 . 5 . Garrison Access 22 | . . . . . 3 . 3 . . . 4 . 3 . . . 1 1 . . . . . . . . . . 3 1 2 1 . . Terminal Hacks 165 | . 4 . 2 2 11 . 9 . 12 . 9 . 15 7 1 . . 14 . . 15 2 2 . . 1 . 3 19 3 8 11 9 6 Record 12 | . . . . . . . . . 6 . . . . . . . . . . . 4 2 . . . . . . . . . . . . Part Schematic 18 | . 1 . . 2 1 . 1 . 3 . 2 . 2 . . . . . . . 3 . . . . . . . 3 . . . . . Robot Analysis 8 | . 3 . . . . . . . . . 1 . . . . . . . . . 4 . . . . . . . . . . . . . Prototype ID Bank 10 | . . . . . . . . . 3 . . . . . . . . 1 . . 4 . . . . . . . 1 . . . 1 . Open Door 19 | . . . 2 . . . . . . . . . . 5 1 . . . . . . . . . . 1 . . . . 1 5 4 . Open DSF 1 | . . . . . . . . . . . . . 1 . . . . . . . . . . . . . . . . . . . . . Branch Access Points 9 | . . . . . 1 . 1 . . . 1 . 1 . . . . 2 . . . . . . . . . 1 . 1 . . 1 . Machine Index 4 | . . . . . . . . . . . 1 . . . . . . 1 . . . . . . . . . . 1 . . 1 . . Terminal Index 9 | . . . . . 1 . 1 . . . . . 1 . . . . 1 . . . . 1 . . . . . 1 . 1 . 1 1 Fabricator Index 8 | . . . . . 1 . 1 . . . . . 1 . . . . 1 . . . . . . . . . . 1 . 1 . 1 1 Repair Station Index 6 | . . . . . 1 . . . . . . . . . . . . 1 . . . . . . . . . . 1 . . 1 1 1 Garrison Index 2 | . . . . . . . . . . . . . 1 . . . . . . . . . . . . . . . 1 . . . . . Alert Level 14 | . . . . . 1 . 2 . . . 1 . 2 1 . . . 2 . . . . 1 . . . . . 2 1 . 1 . . Unreport Threat 11 | . . . . . 2 . 1 . . . . . 2 1 . . . 2 . . . . . . . . . . 2 1 . . . . Locate Traps 7 | . . . . . 1 . 1 . . . . . 1 . . . . 1 . . . . . . . . . . 1 . 1 . . 1 Dispatch Records 1 | . . . . . . . . . . . . . . . . . . . . . . . . . . . . . . . . 1 . . Recall Investigation 5 | . . . . . 1 . . . . . . . 2 . . . . . . . . . . . . . . . 2 . . . . . Recall Extermination 2 | . . . . . . . . . . . . . . . . . . 1 . . . . . . . . . . . . . 1 . . Recall Reinforcements 3 | . . . . . . . . . . . 1 . . . . . . . . . . . . . . . . . . . 2 . . . Hauler Manifests 7 | . . . . . 1 . 1 . . . 1 . . . . . . . . . . . . . . . . 1 1 . 1 1 . . Registered Prototypes 5 | . . . . . . . . . . . 1 . 1 . . . . 1 . . . . . . . . . . 1 . . . . 1 Zone Layout 2 | . . . . . . . . . . . . . . . . . . . . . . . . . . . . 1 . . 1 . . . Protovariant Controls 1 | . . . . . . . . . . . . . . . . . . . . . . . . . . . . . 1 . . . . . Disengage Seal 1 | . . . . . . . . . . . . . . . . . . . . . . . . . . . . . . . . . . 1 Fabricator Hacks 49 | . . . . . 8 . 9 . . . 2 . 6 . . . . 9 . . . . 1 . . . . 2 6 4 . . 2 . Load Schematic 26 | . . . . . 4 . 5 . . . 1 . 3 . . . . 5 . . . . 1 . . . . 1 3 2 . . 1 . Build 23 | . . . . . 4 . 4 . . . 1 . 3 . . . . 4 . . . . . . . . . 1 3 2 . . 1 . Repair Station Hacks 50 | . . . . . 3 . 5 . . . 8 . 4 . . . . 9 . . . . . . . . . 8 6 . 6 . . 1 Scan Component 22 | . . . . . . . 3 . . . 4 . 2 . . . . 4 . . . . . . . . . 3 3 . 3 . . . Repair 20 | . . . . . . . 1 . . . 4 . 2 . . . . 4 . . . . . . . . . 3 3 . 3 . . . Refit 8 | . . . . . 3 . 1 . . . . . . . . . . 1 . . . . . . . . . 2 . . . . . 1 Recycling Unit Hacks 13 | . . . . . 2 . 2 . . . 4 . . . . . . 2 . . . . 1 . . . . 1 . . . . 1 . Retrieve Components 13 | . . . . . 2 . 2 . . . 4 . . . . . . 2 . . . . 1 . . . . 1 . . . . 1 . Scanalyzer 15 | . . . . 3 . . . . . . . . . . . . . 2 . . . . . . . . . . 1 . 5 . 4 . Insert Component 13 | . . . . 2 . . . . . . . . . . . . . 1 . . . . . . . . . . 1 . 5 . 4 . Analyze 2 | . . . . 1 . . . . . . . . . . . . . 1 . . . . . . . . . . . . . . . . Garrison Access Hacks 16 | . . . . . 2 . 2 . . . 3 . 3 . . . 1 1 . . . . . . . . . . 1 1 1 1 . . Seal Access 16 | . . . . . 2 . 2 . . . 3 . 3 . . . 1 1 . . . . . . . . . . 1 1 1 1 . . Unauthorized Hacks 76 | . 1 2 . 2 6 . 7 . . . 7 . 8 2 . . 4 7 . . . . 4 . . . . 5 8 2 2 4 3 2 Terminals 58 | . 1 2 . 2 5 . 4 . . . 6 . 5 2 . . 4 5 . . . . 1 . . . . 4 6 1 2 4 2 2 Assimilate 13 | . . . . . 2 . 1 . . . 2 . 2 . . . . 1 . . . . . . . . . 1 3 . . 1 . . Botnet 32 | . 1 2 . 2 2 . 2 . . . 2 . 2 2 . . 2 3 . . . . 1 . . . . 2 2 1 2 2 1 1 Operators 11 | . . . . . 1 . 1 . . . 2 . 1 . . . . 1 . . . . . . . . . 1 1 . . 1 1 1 Sabotage 2 | . . . . . . . . . . . . . . . . . 2 . . . . . . . . . . . . . . . . . Fabricators 15 | . . . . . 1 . 3 . . . . . 3 . . . . 2 . . . . 1 . . . . 1 2 1 . . 1 . Prioritize 15 | . . . . . 1 . 3 . . . . . 3 . . . . 2 . . . . 1 . . . . 1 2 1 . . 1 . Repair Stations . | . . . . . . . . . . . . . . . . . . . . . . . . . . . . . . . . . . . Recycling Units 3 | . . . . . . . . . . . 1 . . . . . . . . . . . 2 . . . . . . . . . . . Reject 2 | . . . . . . . . . . . 1 . . . . . . . . . . . 1 . . . . . . . . . . . Recyclers 1 | . . . . . . . . . . . . . . . . . . . . . . . 1 . . . . . . . . . . . Scanalyzers . | . . . . . . . . . . . . . . . . . . . . . . . . . . . . . . . . . . . Garrison Access . | . . . . . . . . . . . . . . . . . . . . . . . . . . . . . . . . . . . Data Cores Recovered 1 | . . . . 1 . . . . . . . . . . . . . . . . . . . . . . . . . . . . . . Used . | . . . . . . . . . . . . . . . . . . . . . . . . . . . . . . . . . . . Hacking Detections 133 | . 5 3 . 8 14 . 21 . . . 17 . 10 4 1 . 2 14 . . . . 3 . . . . 6 8 3 7 1 4 2 Full Trace Events 45 | . 1 2 . 2 7 . 9 . . . 3 . 5 . . . . 7 . . . . 1 . . . . 1 2 3 . 1 1 . Feedback Events 2 | . . . . . . . . . . . 1 . . . . . . 1 . . . . . . . . . . . . . . . . Corruption 2 | . . . . . . . . . . . 1 . . . . . . 1 . . . . . . . . . . . . . . . . Feedback Blocked 1 | . . . . . . . . . . . . . 1 . . . . . . . . . . . . . . . . . . . . . Robot Schematics Acquired . | . . . . . . . . . . . . . . . . . . . . . . . . . . . . . . . . . . . Robots Built . | . . . . . . . . . . . . . . . . . . . . . . . . . . . . . . . . . . . Authchips . | . . . . . . . . . . . . . . . . . . . . . . . . . . . . . . . . . . . Time . | . . . . . . . . . . . . . . . . . . . . . . . . . . . . . . . . . . . Total Robot Build Rating . | . . . . . . . . . . . . . . . . . . . . . . . . . . . . . . . . . . . Part Schematics Acquired 21 | . 1 . . 3 1 . 1 . 3 . 2 . 2 . . . . 1 . . 3 . . . . . . . 3 . . 1 . . Parts Built 24 | . . . . . 5 . 4 . . . 1 . 3 . . . . 4 . . . . . . . . . 1 3 2 . . 1 . Authchips 2 | . . . . . . . . . . . . . . . . . . 1 . . . . . . . . . . 1 . . . . . Time 1352 | . . . . . 235 . 263 . . . 31 . 155 . . . . 254 . . . . . . . . . 25 191 160 . . 38 . Total Part Build Rating 120 | . . . . . 15 . 15 . . . 5 . 17 . . . . 29 . . . . . . . . . 5 18 11 . . 5 . Parts Repaired 20 | . . . . . . . 1 . . . 4 . 2 . . . . 4 . . . . . . . . . 3 3 . 3 . . . Time 856 | . . . . . . . 38 . . . 95 . 150 . . . . 215 . . . . . . . . . 108 120 . 130 . . . Parts Recycled . | . . . . . . . . . . . . . . . . . . . . . . . . . . . . . . . . . . . Recycled Matter . | . . . . . . . . . . . . . . . . . . . . . . . . . . . . . . . . . . . Retrieved Matter . | . . . . . . . . . . . . . . . . . . . . . . . . . . . . . . . . . . . Retrieved Components 40 | . . . . . 1 . 11 . . . 7 . . . . . . 12 . . . . . . . . . 8 . . . . 1 . Parts Scanalyzed 2 | . . . . 1 . . . . . . . . . . . . . 1 . . . . . . . . . . . . . . . . Part Schematics Acquired 2 | . . . . 1 . . . . . . . . . . . . . 1 . . . . . . . . . . . . . . . . Parts Damaged . | . . . . . . . . . . . . . . . . . . . . . . . . . . . . . . . . . . . Bothacking | -11 -10 -9 -9 -8 -7 -7 -7 -7 -7 -6 -6 -6 -6 -6 -6 -6 -6 -5 -5 -5 -5 -4 -4 -4 -4 -4 -3 -3 -3 -2 -2 -2 -1 -1 ------------ Run | Yrd Mat Mat Min Mat Fac Was Fac Low Dat Pro Fac Was Fac Ext Cet Arc Hub Fac Upp Upp Zhi Pro Fac Upp Upp War Pro Res Tes Res Qua Sec Acc Com Used RIF Installer . | . . . . . . . . . . . . . . . . . . . . . . . . . . . . . . . . . . . Robots Hacked . | . . . . . . . . . . . . . . . . . . . . . . . . . . . . . . . . . . . Non-combat . | . . . . . . . . . . . . . . . . . . . . . . . . . . . . . . . . . . . Combat . | . . . . . . . . . . . . . . . . . . . . . . . . . . . . . . . . . . . Robot Hacks Applied . | . . . . . . . . . . . . . . . . . . . . . . . . . . . . . . . . . . . Relay Couplers Released 2 | . . . . . . . . . . . . . . . . . 2 . . . . . . . . . . . . . . . . . Machine Destruction 2 | . . . . . . . . . . . . . . . . . 2 . . . . . . . . . . . . . . . . . Fabnet Peak Effective % . | . . . . . . . . . . . . . . . . . . . . . . . . . . . . . . . . . . . Robots Rewired 6 | . . . . . . . . . . . . . . 4 . . . 1 . . . . . . . 1 . . . . . . . . Allies Hacked . | . . . . . . . . . . . . . . . . . . . . . . . . . . . . . . . . . . . Hacks Repelled 1 | . . . . . . . . . . . . . . . . . . . . . . . . . . . . . . . 1 . . . Allies | -11 -10 -9 -9 -8 -7 -7 -7 -7 -7 -6 -6 -6 -6 -6 -6 -6 -6 -5 -5 -5 -5 -4 -4 -4 -4 -4 -3 -3 -3 -2 -2 -2 -1 -1 -------- Run | Yrd Mat Mat Min Mat Fac Was Fac Low Dat Pro Fac Was Fac Ext Cet Arc Hub Fac Upp Upp Zhi Pro Fac Upp Upp War Pro Res Tes Res Qua Sec Acc Com Total Allies 34 | . . . 4 . 1 . 1 . . . 2 . 1 11 5 . . 5 . . . . . . . 1 . 1 2 . . . . . Largest Group 10 | . . . 4 3 1 . 1 . . . 1 . 1 9 10 6 3 3 . . . . . . . 1 . 1 1 . . . . . Highest-Rated Group 732 | . . . 71 40 10 . 26 . . . 26 . 26 338 732 563 196 93 . . . . . . . 65 . 45 26 . . . . . Highest-Rated Ally 159 | . . . 31 16 10 . 26 . . . 26 . 26 159 159 159 96 31 . . . . . . . 65 . 45 26 . . . . . Total Orders 5 | . . . 2 . . . . . . . . . . . . 2 1 . . . . . . . . . . . . . . . . . STAY 3 | . . . 1 . . . . . . . . . . . . 1 1 . . . . . . . . . . . . . . . . . FOLLOW 2 | . . . 1 . . . . . . . . . . . . 1 . . . . . . . . . . . . . . . . . . Ally Attacks 159 | . . . 11 29 . . . . . . . . . 28 57 18 9 7 . . . . . . . . . . . . . . . . Total Damage 4308 | . . . 128 308 . . . . . . . . . 842 1762 734 425 109 . . . . . . . . . . . . . . . . Kills 35 | . . . 4 7 . . . . . . . . . 6 9 3 6 . . . . . . . . . . . . . . . . . Allies Corrupted 1 | . . . . . . . . . . . . . . . . . 1 . . . . . . . . . . . . . . . . . Allies Melted . | . . . . . . . . . . . . . . . . . . . . . . . . . . . . . . . . . . . Intel | -11 -10 -9 -9 -8 -7 -7 -7 -7 -7 -6 -6 -6 -6 -6 -6 -6 -6 -5 -5 -5 -5 -4 -4 -4 -4 -4 -3 -3 -3 -2 -2 -2 -1 -1 ------- Run | Yrd Mat Mat Min Mat Fac Was Fac Low Dat Pro Fac Was Fac Ext Cet Arc Hub Fac Upp Upp Zhi Pro Fac Upp Upp War Pro Res Tes Res Qua Sec Acc Com Robot Analysis Total 8 | . 3 . . . . . . . . . 1 . . . . . . . . . 4 . . . . . . . . . . . . . Derelict Logs Recovered 8 | . . . 1 . . . . 1 . 1 . . . . . . . . 2 . . 1 . 1 1 . . . . . . . . . Drone Launches . | . . . . . . . . . . . . . . . . . . . . . . . . . . . . . . . . . . . Drone Recoveries . | . . . . . . . . . . . . . . . . . . . . . . . . . . . . . . . . . . . Exploration | -11 -10 -9 -9 -8 -7 -7 -7 -7 -7 -6 -6 -6 -6 -6 -6 -6 -6 -5 -5 -5 -5 -4 -4 -4 -4 -4 -3 -3 -3 -2 -2 -2 -1 -1 ------------- Run | Yrd Mat Mat Min Mat Fac Was Fac Low Dat Pro Fac Was Fac Ext Cet Arc Hub Fac Upp Upp Zhi Pro Fac Upp Upp War Pro Res Tes Res Qua Sec Acc Com Turns Passed 17318 | 40 1046 684 394 1326 840 16 1251 149 114 65 1368 30 868 937 545 773 777 1355 145 98 88 120 207 128 116 349 108 647 870 248 579 477 297 263 Spaces Moved 26053 | 28 535 343 224 658 1864 62 2346 354 189 249 2374 94 1599 623 170 256 643 2805 332 312 169 322 396 371 300 438 295 1292 1485 653 1304 1275 876 817 Core 47 | 6 . . . . 11 . . . . . 2 . . . . . . 5 . . . . 9 . . . . . . . . 14 . . Treads 2944 | 22 535 343 224 648 . . . . . . . . . 429 170 256 317 . . . . . . . . . . . . . . . . . Legs . | . . . . . . . . . . . . . . . . . . . . . . . . . . . . . . . . . . . Wheels . | . . . . . . . . . . . . . . . . . . . . . . . . . . . . . . . . . . . Hover 10 | . . . . . . . 10 . . . . . . . . . . . . . . . . . . . . . . . . . . . Flight 22705 | . . . . 10 1853 62 2336 354 189 249 2372 94 1599 194 . . 326 2800 332 312 169 322 387 371 300 438 295 1292 1485 653 1304 1149 739 719 Fastest Speed 7 | 50 160 160 160 26 26 26 26 26 26 17 17 26 20 20 160 160 26 20 25 25 25 25 25 25 25 25 24 25 19 20 12 19 19 7 Average Speed 42 | 136 160 160 160 161 29 26 31 26 26 25 26 26 27 118 226 239 95 26 25 25 25 25 33 25 25 25 25 25 23 20 18 19 19 16 Slowest Speed 400 | 160 160 160 160 167 250 26 110 26 26 26 250 26 32 160 240 240 240 200 26 25 93 25 400 25 25 27 29 29 89 23 20 100 22 21 Overloaded Moves 176 | . . . . . . . . . . 2 4 . 24 10 . . . 11 . . . . . . . . . . 14 . 81 . . 30 Propulsion Burnouts . | . . . . . . . . . . . . . . . . . . . . . . . . . . . . . . . . . . . Robots Hopped 180 | . . . . . 17 . 10 . . 2 14 2 5 14 . . 7 33 . 4 . 1 9 . . 3 1 9 8 13 3 7 4 14 Cave-ins Triggered 2 | . . . . . . . . . . . 1 . . . . . . . . . . . . . . . . . . . . 1 . . Teleports 1 | . . . . . . . . . . . . . . . . . . . . . . . . . . . . . . . . 1 . . Microwarps 21 | . . . . . . . . . . . . . . . . . . . . . . . . . . . . . . . . 6 10 5 Exploration Rate (%) 56 | 3 82 33 65 53 44 70 65 41 82 43 72 96 38 64 74 96 48 53 59 53 63 55 14 69 52 70 58 35 93 13 96 80 28 29 Regions Visited 34 Branch Regions 20 Pre-discovered Areas 9 | . . . 1 . . . . . 1 1 . . . . . . . . 1 . 3 1 . 1 . . . . . . . . . . Known Exits Taken 21 | . . . . . . . 1 1 1 1 . . 1 1 1 1 1 1 . . . . 1 1 1 1 1 1 1 1 1 1 1 . Unknown Exits Taken 9 | 1 1 1 1 1 . . . . . . . . . . . . . . 1 1 1 1 . . . . . . . . . . . . Scrap Searched 17 | . . . 1 . . . . 1 . 1 . . . . . . . . 4 2 . 2 . 4 2 . . . . . . . . . Spaces Dug 294 | . . . . 1 22 . 45 . . . 49 . 20 2 . . 2 30 2 1 . 21 9 . . 6 . 12 21 1 4 24 14 8 Terrain Destroyed 622 | . . . . 1 22 . 97 . . . 82 . 20 11 2 15 195 34 2 1 . 21 9 . . 6 . 12 21 2 14 24 14 17 Melee 243 | . . . . 1 22 . 36 . . . 49 . 20 . . . . 26 2 1 . . 9 . . 6 . 10 15 1 3 20 14 8 Projectile 70 | . . . . . . . . . . . . . . 11 2 15 21 5 . . . . . . . . . 2 6 1 3 4 . . AOE 309 | . . . . . . . 61 . . . 33 . . . . . 174 3 . . . 21 . . . . . . . . 8 . . 9 Terrain Rammed . | . . . . . . . . . . . . . . . . . . . . . . . . . . . . . . . . . . . Walls Destroyed . | . . . . . . . . . . . . . . . . . . . . . . . . . . . . . . . . . . . Machines Disabled . | . . . . . . . . . . . . . . . . . . . . . . . . . . . . . . . . . . . Actions | -11 -10 -9 -9 -8 -7 -7 -7 -7 -7 -6 -6 -6 -6 -6 -6 -6 -6 -5 -5 -5 -5 -4 -4 -4 -4 -4 -3 -3 -3 -2 -2 -2 -1 -1 --------- Run | Yrd Mat Mat Min Mat Fac Was Fac Low Dat Pro Fac Was Fac Ext Cet Arc Hub Fac Upp Upp Zhi Pro Fac Upp Upp War Pro Res Tes Res Qua Sec Acc Com Total 30715 | 29 646 417 252 845 2098 61 2744 410 219 246 3012 96 1981 759 312 339 745 3245 387 326 193 354 440 404 341 659 325 1564 1948 749 1587 1349 832 801 Wait 3472 | . 46 19 8 72 188 . 277 57 3 . 533 5 332 77 131 33 40 292 48 10 . 22 25 28 35 178 29 147 364 93 216 116 28 20 Move 25367 | 27 534 342 223 657 1832 61 2325 353 188 244 2347 90 1589 601 169 255 629 2742 331 306 168 319 378 370 299 431 292 1273 1469 631 1297 1154 741 700 Hop 148 | . . . . . 15 . 10 . . 2 13 1 4 7 . . 6 29 . 1 . 1 8 . . 3 1 9 7 8 3 7 3 10 Pick Up 196 | . 13 7 2 16 10 . 10 . 2 . 15 . 6 11 . 2 2 16 1 2 2 2 3 2 3 . . 17 12 1 9 9 11 10 Fast Attach 170 | 2 6 3 2 3 3 . 11 . . . 4 . 5 4 2 4 4 29 . 1 3 2 5 1 . 12 . 17 16 4 6 11 7 3 Attach 101 | . . 2 . 10 3 . 10 . . . 6 . . 2 . . 6 16 1 1 1 . 2 3 . 1 1 5 6 2 2 5 7 9 Detach 45 | . . . 1 1 2 . 7 . . . 4 . 1 3 . . 3 7 . 1 . . . . . 3 . 3 2 . 1 2 2 2 Swap 124 | . 4 4 4 11 6 . 9 . 1 . 10 . 8 9 . 1 6 1 4 1 2 1 . . 1 4 1 6 15 1 8 1 . 5 Drop 261 | . 4 7 7 32 9 . 19 . 2 . 14 . 6 3 1 5 15 16 . 2 4 3 5 . 3 15 1 23 23 4 11 8 7 12 Fire 306 | . 38 31 5 41 . . 6 . . . 4 . . 20 9 39 33 39 . . . 1 . . . . . 2 7 3 8 9 . 11 Melee 462 | . . . . 2 30 . 60 . 23 . 62 . 30 6 . . . 56 2 1 13 3 14 . . 10 . 26 27 2 24 27 26 18 Ram . | . . . . . . . . . . . . . . . . . . . . . . . . . . . . . . . . . . . Kick . | . . . . . . . . . . . . . . . . . . . . . . . . . . . . . . . . . . . Crush 7 | . 1 2 . . . . . . . . . . . 3 . . 1 . . . . . . . . . . . . . . . . . Escape Stasis 38 | . . . . . . . . . . . . . . . . . . . . . . . . . . . . 36 . . 2 . . . Rewire 18 | . . . . . . . . . . . . . . 13 . . . 2 . . . . . . . 2 . . . . . . . 1 Trap . | . . . . . . . . . . . . . . . . . . . . . . . . . . . . . . . . . . . Miscellaneous . | . . . . . . . . . . . . . . . . . . . . . . . . . . . . . . . . . . . Route ------- -11/Scrapyard -10/Materials (discovered 4 exits: *Mat x3 / [*Min]) -9/Materials -9/Mines (discovered 2 exits: *Mat x2) -8/Materials -7/Factory (discovered 2 exits: *Low x2) -7/Waste -7/Factory (discovered 5 exits: *Fac x3 / *Low x2) -7/Lower Caves -7/Data Miner -6/Proximity Caves -6/Factory (discovered 7 exits: *Fac x3 / *Low x2 / *Ext x2) -6/Waste -6/Factory (discovered 4 exits: Low x2 / *Ext x2) -6/Extension (discovered 2 exits: *Fac / *Cet) -6/Cetus (discovered 2 exits: *Fac / *Arc) -6/Archives (discovered 3 exits: *Fac / *Hub x2) -6/Hub_04(d) (discovered 2 exits: *Fac x2) -5/Factory (discovered 3 exits: *Fac / *Upp x2) -5/Upper Caves -5/Upper Caves (discovered 2 exits: *Fac / *Zhi) -5/Zhirov -4/Proximity Caves -4/Factory -4/Upper Caves -4/Upper Caves -4/Warlord -3/Proximity Caves -3/Research (discovered 4 exits: Res / Arm / *Tes x2) -3/Testing -2/Research (discovered 3 exits: *Acc / *Qua x2) -2/Quarantine (discovered 2 exits: *Acc / *Sec) -2/Section 7 -1/Access (discovered 2 exits: [*Sur] / *Com) -1/Command (discovered 1 exit: [*Sur]) History --------- Turn | Location | Event 14 | -11/Scrapyard | Discovered new exit (range 15) 41 | -11/Scrapyard | Entered Materials 316 | -10/Materials | Build established: Mutant 518 | -10/Materials | Discovered new exit (range 14) 647 | -10/Materials | Discovered new exit (range 13) 771 | -10/Materials | Discovered new exit (range 15) 1051 | -10/Materials | Discovered new exit (range 14) 1087 | -10/Materials | Entered another Materials area 1087 | -9/Materials | Evolved 2 slots: Propulsion x1, Utility x1 1699 | -9/Materials | Discovered new exit (range 7) 1771 | -9/Materials | Entered Mines 1774 | -9/Mines | Received a Mining Laser from a helpful Derelict 1872 | -9/Mines | Learned location of Storage (-9) 1911 | -9/Mines | Assisted by bots powering up and referring to "LRC-V3" 1964 | -9/Mines | Met a Derelict who couldn't figure out how to use a Trap Extractor 2044 | -9/Mines | Met a Derelict shopkeep closing up shop 2143 | -9/Mines | Build established: Scavenger-Mutant 2155 | -9/Mines | Discovered new exit (range 8) 2162 | -9/Mines | Discovered new exit (range 12) 2165 | -9/Mines | Entered Materials 2165 | -8/Materials | Accompanied by 3 allies 2165 | -8/Materials | Evolved 2 slots: Propulsion x1, Utility x1 2801 | -8/Materials | Lost 3 allies 2960 | -8/Materials | Build established: Mutant 3144 | -8/Materials | Discovered new exit (range 3) 3491 | -8/Materials | Entered Factory 3491 | -7/Factory | Evolved 2 slots: Utility x2 3522 | -7/Factory | Discovered new exit (range 15) 3576 | -7/Factory | Fabricated Imp. Propulsion Shielding (x2) 3690 | -7/Factory | Fabricated Imp. Utility Shielding? 3721 | -7/Factory | Identified exit to Lower Caves 3764 | -7/Factory | Build established: Hacker-Sprinter 4132 | -7/Factory | Fabricated Imp. VTOL Module? 4331 | -7/Factory | Sucked down chute 4331 | -7/Factory | Entered Waste 4339 | -7/Waste | Spotted C-40 Crusher 4339 | -7/Waste | Spotted C-40 Crusher 4340 | -7/Waste | Spotted C-40 Crusher 4345 | -7/Waste | Discovered new exit (range 10) 4345 | -7/Waste | Spotted C-40 Crusher 4346 | -7/Waste | EMP discharged 4347 | -7/Waste | Identified exit to Factory 4347 | -7/Waste | Entered Factory 4652 | -7/Factory | Fabricated Imp. VTOL Module (x1) 4657 | -7/Factory | Discovered new exit (range 20) 4662 | -7/Factory | Identified exit to Factory 5099 | -7/Factory | Discovered exit to Factory (range 7) 5104 | -7/Factory | Fabricated Cld. VTOL Module? 5168 | -7/Factory | Fabricated Cld. VTOL Module? 5240 | -7/Factory | Build established: Scavenger-Scout 5357 | -7/Factory | Discovered exit to Factory (range 13) 5474 | -7/Factory | Repaired Scythe 5547 | -7/Factory | Search patrols dispatched 5559 | -7/Factory | Fabricated Cld. VTOL Module? 5598 | -7/Factory | Entered Lower Caves 5645 | -7/Lower Caves | Learned location of 1 exit from Factory 5743 | -7/Lower Caves | A Derelict revealed a hidden shortcut to meet someone special 5746 | -7/Lower Caves | Identified exit to Data Miner 5747 | -7/Lower Caves | Entered Data Miner 5747 | -7/Data Miner | Discovered new exit (range 6) 5751 | -7/Data Miner | Met Data Miner 5758 | -7/Data Miner | Learned location of Section 7 (-2) 5758 | -7/Data Miner | Acquired the access code to Warlord's prototype stash 5762 | -7/Data Miner | Received God Mode back door access code from Data Miner 5768 | -7/Data Miner | Identified exit to Proximity Caves 5776 | -7/Data Miner | Destroyed Data Miner 5779 | -7/Data Miner | Found Prototype Hackware 5781 | -7/Data Miner | Data Conduit disabled 5860 | -7/Data Miner | Identified Ghost Barrier 5861 | -7/Data Miner | Entered Proximity Caves 5909 | -6/Proximity Caves | Spotted B-75 Beast 5923 | -6/Proximity Caves | Discovered exit to Factory (range 13) 5926 | -6/Proximity Caves | Entered Factory 5926 | -6/Factory | Evolved 2 slots: Utility x2 5927 | -6/Factory | Identified exit to Lower Caves 6026 | -6/Factory | Discovered new exit (range 8) 6164 | -6/Factory | Build established: Hacker-Scout 6188 | -6/Factory | Spotted B-75 Beast 6392 | -6/Factory | Discovered new exit (range 8) 6393 | -6/Factory | Identified exit to Factory 6410 | -6/Factory | Identified exit to Extension 6564 | -6/Factory | Crushed by falling debris 6774 | -6/Factory | Cargo convoy interrupted 6880 | -6/Factory | Fabricated Imp. Hacking Suite (x1) 7164 | -6/Factory | Repaired Imp. Propulsion Shielding 7187 | -6/Factory | Repaired Hvy. Missile Launcher 7216 | -6/Factory | Repaired Scythe 7252 | -6/Factory | Repaired Cld. VTOL Module 7292 | -6/Factory | Discovered exit to Factory (range 22) 7294 | -6/Factory | Sucked down chute 7294 | -6/Factory | Entered Waste 7297 | -6/Waste | Spotted C-40 Crusher 7297 | -6/Waste | Spotted C-40 Crusher 7304 | -6/Waste | Spotted C-40 Crusher 7304 | -6/Waste | Spotted C-40 Crusher 7309 | -6/Waste | EMP discharged 7312 | -6/Waste | Spotted C-40 Crusher 7313 | -6/Waste | Spotted C-40 Crusher 7315 | -6/Waste | Discovered new exit (range 13) 7323 | -6/Waste | Identified exit to Factory 7324 | -6/Waste | Entered Factory 7377 | -6/Factory | Spotted B-75 Beast 7443 | -6/Factory | Fabricated Adv. Hacking Suite (x1) 7695 | -6/Factory | Fabricated Adv. Hacking Suite? 7926 | -6/Factory | Fabricated Exp. Propulsion Shielding? 8038 | -6/Factory | Repaired Gravity Neutralizer 8109 | -6/Factory | Repaired Cld. VTOL Module 8192 | -6/Factory | Entered Extension 8216 | -6/Extension | Spotted B-75 Beast 8217 | -6/Extension | Spotted B-75 Beast 8283 | -6/Extension | Discovered exit to Factory (range 22) 8283 | -6/Extension | Discovered new exit (range 22) 8497 | -6/Extension | Rescued a captive Derelict 8512 | -6/Extension | Rescued a captive Derelict 8555 | -6/Extension | Rescued a captive Derelict 8556 | -6/Extension | Rescued a captive Derelict 8692 | -6/Extension | Rescued a captive Derelict 8710 | -6/Extension | Rescued a captive Derelict 8761 | -6/Extension | Rescued A7 8899 | -6/Extension | Build established: Hacker-Mutant 9114 | -6/Extension | Identified exit to Cetus 9129 | -6/Extension | Entered Cetus 9129 | -6/Cetus | Accompanied by 7 allies (A7) 9134 | -6/Cetus | Acquired a Cetus Manufacturing Module code from A7 9144 | -6/Cetus | Spotted Cetus Guard 9145 | -6/Cetus | Spotted Cetus Guard 9147 | -6/Cetus | Spotted Cetus Guard 9156 | -6/Cetus | Allies destroyed Cetus Guard 9161 | -6/Cetus | Spotted Cetus Guard 9161 | -6/Cetus | Allies destroyed Cetus Guard 9172 | -6/Cetus | Destroyed Cetus Guard 9178 | -6/Cetus | Allies destroyed Cetus Guard 9280 | -6/Cetus | Escorted A7 to Cetus Mainframe 9306 | -6/Cetus | Started Cetus Manufacturing Module 9331 | -6/Cetus | Manufactured an Enhanced Grunt 9356 | -6/Cetus | Manufactured an Enhanced Grunt 9381 | -6/Cetus | Manufactured an Enhanced Grunt 9406 | -6/Cetus | Manufactured an Enhanced Grunt 9431 | -6/Cetus | Manufactured an Enhanced Grunt 9446 | -6/Cetus | Discovered new exit (range 21) 9491 | -6/Cetus | Spotted Cetus Guard 9494 | -6/Cetus | Spotted Cetus Guard 9495 | -6/Cetus | Spotted Cetus Guard 9497 | -6/Cetus | Spotted Cetus Guard 9501 | -6/Cetus | Discovered exit to Factory (range 22) 9506 | -6/Cetus | Allies destroyed Cetus Guard 9513 | -6/Cetus | Allies destroyed Cetus Guard 9515 | -6/Cetus | Allies destroyed Cetus Guard 9519 | -6/Cetus | Allies destroyed Cetus Guard 9549 | -6/Cetus | Lost 4 allies 9569 | -6/Cetus | Met Revision 17 9670 | -6/Cetus | Identified exit to Archives 9674 | -6/Cetus | Entered Archives 9674 | -6/Archives | Accompanied by 6 allies (A7) 9679 | -6/Archives | Received a hacking code to weaken MAIN.C 9749 | -6/Archives | Discovered new exit (range 22) 10017 | -6/Archives | Discovered new exit (range 13) 10101 | -6/Archives | Discovered exit to Factory (range 15) 10445 | -6/Archives | Identified exit to Hub_04(d) 10447 | -6/Archives | Entered Hub_04(d) 10447 | -6/Hub_04(d) | Accompanied by 3 allies 10549 | -6/Hub_04(d) | Discovered exit to Factory (range 17) 10623 | -6/Hub_04(d) | System corruption reached 10% 10789 | -6/Hub_04(d) | Garrison activated, responded to threat 10792 | -6/Hub_04(d) | Build established: Hacker-Skirmisher 11134 | -6/Hub_04(d) | Network Hub disabled 11146 | -6/Hub_04(d) | Network Hub disabled 11147 | -6/Hub_04(d) | First assault squad dispatched 11162 | -6/Hub_04(d) | Spotted Lightning 11162 | -6/Hub_04(d) | Spotted Lightning 11163 | -6/Hub_04(d) | Spotted Lightning 11182 | -6/Hub_04(d) | Spotted Lightning 11207 | -6/Hub_04(d) | Core integrity fell below 50% 11207 | -6/Hub_04(d) | Discovered exit to Factory (range 21) 11224 | -6/Hub_04(d) | Entered Factory 11224 | -5/Factory | Evolved 2 slots: Power x1, Propulsion x1 11400 | -5/Factory | Fabricated Electron Diverter (x1) 11461 | -5/Factory | Fabricated Electron Diverter? 11502 | -5/Factory | Identified exit to Upper Caves 11566 | -5/Factory | Lost 3 parts (1p2n) 11694 | -5/Factory | Core integrity fell below 50% 11717 | -5/Factory | Discovered new exit (range 21) 11724 | -5/Factory | Lost 5 parts (2n3u) 11769 | -5/Factory | Spotted B-75 Beast 11824 | -5/Factory | Search patrols dispatched 11866 | -5/Factory | Repaired Electron Diverter 11918 | -5/Factory | Repaired Adv. Sensor Array 11952 | -5/Factory | Repaired VTOL Module? 12034 | -5/Factory | Repaired Nuclear Pulse Thruster? 12189 | -5/Factory | Fabricated Exp. Propulsion Shielding? 12220 | -5/Factory | Build established: Hacker-Scout 12251 | -5/Factory | Fabricated Electron Diverter? 12274 | -5/Factory | Allied Derelicts emerged from ambush trap array 12424 | -5/Factory | Search patrols dispatched 12579 | -5/Factory | Entered Upper Caves 12597 | -5/Upper Caves | Encountered a Warlord checkpoint 12598 | -5/Upper Caves | Learned location of Armory (-3) 12633 | -5/Upper Caves | Learned Factory security intel 12707 | -5/Upper Caves | Discovered new exit (range 10) 12724 | -5/Upper Caves | Entered another Upper Caves area 12724 | -5/Upper Caves | Discovered new exit (range 5) 12725 | -5/Upper Caves | Encountered a Warlord checkpoint 12820 | -5/Upper Caves | Discovered new exit (range 12) 12822 | -5/Upper Caves | Entered Zhirov 12822 | -5/Zhirov | Discovered new exit (range 3) 12827 | -5/Zhirov | Met Zhirov 12832 | -5/Zhirov | Learned location of Quarantine (-2) 12832 | -5/Zhirov | Learned location of Testing (-3) 12832 | -5/Zhirov | Learned location of Command (-1) 12836 | -5/Zhirov | Zhirov requested help retrieving the SGEMP Prototype 12841 | -5/Zhirov | Found Alien Artifact 12841 | -5/Zhirov | Identified Integrated Reactor 12841 | -5/Zhirov | Installed Integrated Reactor, increased core energy generation (+10) 12847 | -5/Zhirov | Found Alien Artifact 12876 | -5/Zhirov | Build established: Hacker-Sprinter 12910 | -5/Zhirov | Entered Proximity Caves 13009 | -4/Proximity Caves | Spotter reported a threat 13029 | -4/Proximity Caves | Discovered new exit (range 7) 13030 | -4/Proximity Caves | Entered Factory 13030 | -4/Factory | Evolved 2 slots: Utility x2 13234 | -4/Factory | Discovered new exit (range 12) 13237 | -4/Factory | Identified exit to Upper Caves 13237 | -4/Factory | Entered Upper Caves 13264 | -4/Upper Caves | Lost 3 parts (2n1u) 13357 | -4/Upper Caves | Discovered new exit (range 9) 13359 | -4/Upper Caves | Identified exit to Upper Caves 13365 | -4/Upper Caves | Entered another Upper Caves area 13413 | -4/Upper Caves | Learned location of 1 exit from Research 13480 | -4/Upper Caves | Discovered new exit (range 5) 13481 | -4/Upper Caves | Identified exit to Warlord 13481 | -4/Upper Caves | Entered Warlord 13502 | -4/Warlord | Build established: Hacker-Scout 13586 | -4/Warlord | Met Warlord 13589 | -4/Warlord | Opened Warlord's prototype stash 13591 | -4/Warlord | Found Prototype Reactor 13591 | -4/Warlord | Identified Vortex Chain Reactor 13599 | -4/Warlord | Found Prototype Processor 13599 | -4/Warlord | Identified Exp. Targeting Computer 13602 | -4/Warlord | Found Ghost Barrier 13607 | -4/Warlord | Found Prototype Device 13607 | -4/Warlord | Identified Thermal Barrier 13609 | -4/Warlord | Found Prototype Processor 13609 | -4/Warlord | Identified Exp. Target Analyzer 13611 | -4/Warlord | Warlord's base attacked by MAIN.C 13785 | -4/Warlord | Opened side exit 13819 | -4/Warlord | Discovered new exit (range 12) 13821 | -4/Warlord | Identified exit to Proximity Caves 13830 | -4/Warlord | Entered Proximity Caves 13931 | -3/Proximity Caves | Attracted the attention of an 0b10 outpost 13932 | -3/Proximity Caves | Attracted the attention of an 0b10 checkpoint 13937 | -3/Proximity Caves | Discovered new exit (range 8) 13938 | -3/Proximity Caves | Identified exit to Research 13938 | -3/Proximity Caves | Entered Research 13938 | -3/Research | Evolved 2 slots: Utility x2 13939 | -3/Research | Identified exit to Research 13988 | -3/Research | Discovered new exit (range 12) 14138 | -3/Research | Revision forces began assault on 0b10 14214 | -3/Research | Identified exit to Armory 14214 | -3/Research | Identified exit to Testing 14227 | -3/Research | Spotted B-86 Titan 14292 | -3/Research | Repaired Electron Diverter? 14340 | -3/Research | Repaired Electron Diverter 14340 | -3/Research | Lost 7 allies 14378 | -3/Research | Repaired Electron Diverter 14430 | -3/Research | Fabricated Exp. Propulsion Shielding (x1) 14464 | -3/Research | Found Prototype Processor 14464 | -3/Research | Identified Exp. Signal Interpreter 14481 | -3/Research | Found Prototype Device 14481 | -3/Research | Identified Exp. Thermal Shield 14585 | -3/Research | Entered Testing 14591 | -3/Testing | Found Prototype Processor 14591 | -3/Testing | Identified Spectral Analyzer 14601 | -3/Testing | Identified Transdimensional Reconstructor 14615 | -3/Testing | Found Prototype Energy Cannon 14615 | -3/Testing | Identified Null Cannon 14635 | -3/Testing | Found Prototype Hackware 14635 | -3/Testing | Identified System Mapper 14639 | -3/Testing | Discovered exit to Research (range 12) 14680 | -3/Testing | Protovariant out of control (PG-1KFTDP8AEP) 14680 | -3/Testing | Unleashed a protovariant (PG-1KFTDP8AEP) 14701 | -3/Testing | Garrison activated, responded to threat 14777 | -3/Testing | Fabricated Combat Drone Bay (x1) 14869 | -3/Testing | Fabricated Exp. Power Shielding? 14909 | -3/Testing | Build established: Wizard-Scout 14984 | -3/Testing | Fabricated Adv. Gravity Neutralizer (x1) 15041 | -3/Testing | Found Prototype Launcher 15042 | -3/Testing | Identified Hellfire Missile Launcher 15073 | -3/Testing | Spotted Striker 15076 | -3/Testing | Spotted Striker 15104 | -3/Testing | Found Exp. Hacking Suite 15114 | -3/Testing | Found Prototype Launcher 15119 | -3/Testing | Identified Z-bomb Delivery System 15156 | -3/Testing | Found Prototype Hackware 15156 | -3/Testing | Identified Exp. System Shield 15204 | -3/Testing | Found Prototype Device 15204 | -3/Testing | Identified Adv. Kinecellerator 15232 | -3/Testing | Repaired Exp. Propulsion Shielding? 15302 | -3/Testing | Repaired Exp. Power Shielding 15343 | -3/Testing | Repaired Exp. Utility Shielding 15349 | -3/Testing | Found Prototype Device 15349 | -3/Testing | Identified Exp. Sensor Array 15455 | -3/Testing | Entered Research 15455 | -2/Research | Warlord forces began assault on 0b10 15455 | -2/Research | Evolved 2 slots: Propulsion x1, Utility x1 15475 | -2/Research | Found Prototype Device 15475 | -2/Research | Identified Exp. EM Disruption Field 15492 | -2/Research | Identified exit to Quarantine 15550 | -2/Research | Fabricated Exp. Heat Sink (x1) 15565 | -2/Research | Research machine network offline 15572 | -2/Research | Fabricated Lgt. Regenerative Plating (x1) 15601 | -2/Research | Met up with Warlord 15686 | -2/Research | Discovered new exit (range 16) 15703 | -2/Research | Entered Quarantine 15704 | -2/Quarantine | P-80 Master assimilated allied A6-0JY(g) 15709 | -2/Quarantine | Cryocooling Duct disabled 15724 | -2/Quarantine | Ambient heat levels rising (+20) 15724 | -2/Quarantine | Non-combat units ordered to evacuate 15895 | -2/Quarantine | Found Alien Artifact 15907 | -2/Quarantine | Identified Phase Armor 15983 | -2/Quarantine | Repaired Electron Diverter 16011 | -2/Quarantine | Repaired Exp. Propulsion Shielding 16069 | -2/Quarantine | Repaired Electron Diverter 16140 | -2/Quarantine | Found Alien Artifact 16148 | -2/Quarantine | Identified Subatomic Replicator 16151 | -2/Quarantine | Discovered new exit (range 13) 16174 | -2/Quarantine | Identified exit to Access 16190 | -2/Quarantine | Found Alien Artifact 16196 | -2/Quarantine | Identified Terrabomb 16210 | -2/Quarantine | Found Alien Artifact 16213 | -2/Quarantine | Found Alien Artifact 16220 | -2/Quarantine | Identified Dimensional Node Initializer 16220 | -2/Quarantine | Identified Hpw. Transdimensional Reconstructor 16238 | -2/Quarantine | Spotted Alpha 7 16242 | -2/Quarantine | Found Alien Launcher 16270 | -2/Quarantine | Spotted Fortress 16281 | -2/Quarantine | Discovered new exit (range 6) 16282 | -2/Quarantine | Identified exit to Section 7 16282 | -2/Quarantine | Entered Section 7 16297 | -2/Section 7 | Found Alien Artifact 16335 | -2/Section 7 | Found Alien Artifact 16503 | -2/Section 7 | Discovered exit to Access (range 21) 16510 | -2/Section 7 | Initialized slip node 16524 | -2/Section 7 | Spotted Executioner 16524 | -2/Section 7 | Spotted Executioner 16536 | -2/Section 7 | Found Terrabomb 16544 | -2/Section 7 | Spotted Striker 16544 | -2/Section 7 | Spotted Striker 16556 | -2/Section 7 | Spotted B-99 Colossus 16557 | -2/Section 7 | Spotted Alpha 7 16569 | -2/Section 7 | Found Alien Artifact 16569 | -2/Section 7 | Identified LRC Storage 16569 | -2/Section 7 | Installed LRC Storage, increased inventory capacity (+2) 16572 | -2/Section 7 | Found LRC Storage 16572 | -2/Section 7 | Installed LRC Storage, increased inventory capacity (+2) 16573 | -2/Section 7 | Found Alien Artifact 16573 | -2/Section 7 | Identified LRC Inertial Stabilizer 16573 | -2/Section 7 | Installed LRC Inertial Stabilizer, increased mass support (+10) 16586 | -2/Section 7 | Found Alien Artifact 16587 | -2/Section 7 | Found Alien Artifact 16589 | -2/Section 7 | Warped through subspace to slip node 16609 | -2/Section 7 | Spotted S7 Guard 16613 | -2/Section 7 | Found Alien Artifact 16613 | -2/Section 7 | Identified Core Regenerator 16613 | -2/Section 7 | Used Core Regenerator, restored core integrity (+245) 16626 | -2/Section 7 | Found Alien Artifact 16645 | -2/Section 7 | Found Prototype Device 16645 | -2/Section 7 | Identified Exp. Phase Shifter 16673 | -2/Section 7 | Found Alien Artifact 16673 | -2/Section 7 | Identified Microwarp Drive 16697 | -2/Section 7 | Crushed by falling debris 16724 | -2/Section 7 | Spotted S7 Guard 16728 | -2/Section 7 | Lost 3 parts (2u1w) 16731 | -2/Section 7 | Found Alien Artifact 16731 | -2/Section 7 | Identified Integrated Thermoelectric Network 16731 | -2/Section 7 | Installed Integrated Thermoelectric Network, gained heat-energy exchange potential 16743 | -2/Section 7 | Spotted B-90 Cyclops 16744 | -2/Section 7 | Spotted S7 Guard 16747 | -2/Section 7 | Found Alien Artifact 16759 | -2/Section 7 | Entered Access 16759 | -1/Access | Evolved 2 slots: Utility x2 16774 | -1/Access | Used Subatomic Replicator to create Alien Launcher 16783 | -1/Access | Lost 3 parts (2p1u) 16813 | -1/Access | Identified Integrity Redistributor (x3) 16813 | -1/Access | Identified Core Physics Calibrator 16813 | -1/Access | Identified Integrated Dissipator (x2) 16813 | -1/Access | Identified Supercharged Sigix Terminator 16813 | -1/Access | Installed Integrated Dissipator, increased core heat dissipation (+20) 16826 | -1/Access | Fabricated Exp. Utility Shielding (x1) 16897 | -1/Access | Identified exit to Command 17017 | -1/Access | Discovered new exit (range 7) 17039 | -1/Access | Spotted B-99 Colossus 17051 | -1/Access | Search patrols dispatched 17056 | -1/Access | Entered Command 17077 | -1/Command | Used Integrity Redistributor, redistributed integrity from core (-104) 17078 | -1/Command | Installed Integrated Dissipator, increased core heat dissipation (+20) 17141 | -1/Command | Spotted B-99 Colossus 17141 | -1/Command | Spotted Executioner 17141 | -1/Command | Spotted Executioner 17141 | -1/Command | Spotted Striker 17141 | -1/Command | Spotted Alpha 7 17141 | -1/Command | Spotted Executioner 17141 | -1/Command | Spotted Executioner 17141 | -1/Command | Spotted Striker 17141 | -1/Command | Spotted Alpha 7 17141 | -1/Command | Spotted B-99 Colossus 17141 | -1/Command | Discovered new exit (range 5) 17143 | -1/Command | Core integrity fell below 50% 17190 | -1/Command | Disengaged cave seal 17190 | -1/Command | Welcomed Warlord to Command 17283 | -1/Command | Lost 15 allies 17297 | -1/Command | Spotted M Guard 17297 | -1/Command | Spotted M Guard 17297 | -1/Command | Spotted Combat Programmer 17299 | -1/Command | Spotted Combat Programmer 17306 | -1/Command | System corruption reached 10% 17318 | -1/Command | Used Terrabomb 17319 | -1/Command | Fired Supercharged Sigix Terminator 17319 | -1/Command | Destroyed self with Supercharged Sigix Terminator Last Messages --------------- Destroyed Phase Gun. G-73 Enforcer destroyed. C-30 ARC bursts open for emergency deployment. H-88 Terminator unfolds itself. C-30 ARC destroyed. Imp. Power Shielding destroyed. Backup Power VII destroyed. Destroyed Backup Power VII. Backup Power VII destroyed. Destroyed Backup Power VII. Cld. Q-thruster destroyed. Destroyed Cld. Q-thruster. Microwarp Drive destroyed. Destroyed Microwarp Drive. Cld. Q-thruster destroyed. Destroyed Cld. Q-thruster. Adv. Energy Well destroyed. Destroyed Adv. Energy Well. System Mapper destroyed. Destroyed System Mapper. Map ----- +----------------------------------------------------+ | ?????????????????????????????????????????????????? | | ?????????????????????????????????????????????????? | | ?????????????????????????????????????????????????? | | ?????????????????????????????????????????????????? | | ?????????????????????????????????????????????????? | | ?????????????????????###??####???????????????????? | | ??????????????????# ; ?? ???????????????????? | | ????????????????#; ; ?? ?? ??????????????? | | ?????????????##; ; ; ?? ? ??????????????? | | ???????????##; ; ; ; ?? ? ? ?????????? | | ??????????## ; ; ; ;;##;;;##;;;##;;;##????????? | | ?????????## ; ; ; ; ; ; ; ; ; ; #???????? | | ?????????# ; ; ; ; ; ; ; ; ; ; #???????? | | ????????# ; ; ; ; ; ; ; ; ; ; ;#??????? | | ????????# ; ; ; ; ; ; ; ; ; ; ;#??????? | | ???????? ; ; ; ; ; ; ; ; ; ; ; ??????? | | ???????# ; ; ; ; g; ; ; ; ; ; ; #?????? | | ??????? ; ; ; ;; CgCpgp;;gg ;;g ;; ?????? | | ??????# ; ; ; ;eegg%p p ;g g g ggg; #????? | | ?????? ; ; ; gx Cglppgpggggggggg ; ????? | | ?????? ; ; ; x eggpppp g g gg ggg; ????? | | ?????# ; ; ; x eClCpppgpgg gg g ; #???? | | ?????# ; ; ; xxeshppsp ggg g ggg #???? | | ?????# ; ; ; ;xgg pppp; gggggggg; #???? | | ?????# ; ; ; ;;shh ;;;p;;g;;;;g;;; #???? | | ????# ; ; ; g@ s; ; ; ; ; ; #??? | | ?????# ; ; ; ; ; ; ; ; ; ; ; #???? | | ?????# ; ; ; ; ;;;; ;;; ;;;; ; #???? | | ?????# ; ; ; ; ; #???? | | ?????# ; ; ; ;;;;;;;;#;#;;;;;; #???? | | ?????? ; ; ; ; #? ????? | | ?????? ; ; ; ; ;???? ????? | | ??????# ; ; ; ; ; ?????? #????? | | ??????? ; ; ; ; ; ??????????? | | ???????# ; ; ; ; ; ?????????? | | ???????? ; ; ; ; ; ???????? | | ????????# ; ; ; ; ; #??????? | | ????????# ; ; ; ; ; #??????? | | ?????????# ; ; ; ; ; #???????? | | ?????????## ; ; ; ; ; ##???????? | | ??????????## ; ; ; ; ; ##????????? | | ???????????##; ; ; ; ; ##?????????? | | ?????????????##;;;;;;;;;;;; ; ;##???????????? | | ????????????????# ; ; ; #?????????????? | | ??????????????????#;;;;;;;;;; ; #?????????????? | | ????????????????????? ##?# ] #?????????????? | | ??????????????????????? ???# #?????????????? | | ???????????????????????????????# #?????????????? | | ???????????????????????????????# #?????????????? | | ???????????????????????????????# #??###????????? | +----------------------------------------------------+ Best States ------------- Heat Dissipation 118 Energy Generation 48 Energy Capacity 690 Matter Stores 300 Matter Capacity 300 Sight Range 22 Robot Scan Range 20 Terrain Scan Density 10 ECM Strength 2 Power Amplification 40 Additional Mass Support 16 Armor Coverage 375 Power Shielding 90 Propulsion Shielding 90 Utility Shielding 90 Point Defense Rating 480 Phase Shifting 20 Evasion (%) 86 Targeting Accuracy 12 Target Analysis 10 Recoil Reduction 4 Offensive Hacking 68 Defensive Hacking 20 Authchip Count 1 Item Schematics ----------------- ECM Suite | -10/Materials | Hacked Imp. Propulsion Shielding | -8/Materials | Hacked Imp. Utility Shielding | -8/Materials | Hacked Hacking Suite | -8/Materials | Scanalyzed Imp. VTOL Module | -7/Factory | Hacked Cld. VTOL Module | -7/Factory | Hacked Lgt. Regenerative Plating | -7/Data Miner | Free Gravity Neutralizer | -7/Data Miner | Free Combat Drone Bay | -7/Data Miner | Free Imp. Hacking Suite | -6/Factory | Hacked Adv. Hacking Suite | -6/Factory | Hacked Stasis Canceller | -6/Factory | Hacked Exp. Propulsion Shielding | -6/Factory | Hacked Electron Diverter | -5/Factory | Scanalyzed Assault Drone Bay | -5/Zhirov | Free Exp. Optical Array | -5/Zhirov | Free Exp. Heat Sink | -5/Zhirov | Free Exp. Utility Shielding | -3/Testing | Hacked Exp. Power Shielding | -3/Testing | Hacked Adv. Gravity Neutralizer | -3/Testing | Hacked Imp. Quantum Reactor | -2/Section 7 | Archive Robot Schematics ------------------ None Fabricated ------------ Imp. Propulsion Shielding | x2 | -7/Factory Imp. Utility Shielding | x2 | -7/Factory Imp. VTOL Module | x1 | -7/Factory Imp. VTOL Module | x1 | -7/Factory Cld. VTOL Module | x1 | -7/Factory Cld. VTOL Module | x1 | -7/Factory Cld. VTOL Module | x1 | -7/Factory Imp. Hacking Suite | x1 | -6/Factory Adv. Hacking Suite | x1 | -6/Factory Adv. Hacking Suite | x1 | -6/Factory Exp. Propulsion Shielding | x1 | -6/Factory Electron Diverter | x1 | -5/Factory | Authchip Electron Diverter | x1 | -5/Factory Exp. Propulsion Shielding | x1 | -5/Factory Electron Diverter | x1 | -5/Factory Exp. Propulsion Shielding | x1 | -3/Research Combat Drone Bay | x1 | -3/Testing | Authchip Exp. Power Shielding | x1 | -3/Testing Adv. Gravity Neutralizer | x1 | -3/Testing Exp. Heat Sink | x1 | -2/Research Lgt. Regenerative Plating | x1 | -2/Research Exp. Utility Shielding | x1 | -1/Access Alien Tech Used ----------------- Integrated Reactor Dimensional Node Initializer LRC Storage LRC Inertial Stabilizer High-powered Transdimensional Reconstructor Core Regenerator Microwarp Drive Integrated Thermoelectric Network Subatomic Replicator Integrated Dissipator Integrity Redistributor Supercharged Sigix Terminator Terrabomb Achievements -------------- None Challenges ------------ None Game ------ Seed GottaGoFast Manual? 1 Play Time 05:28:16 Cumulative 229.3 hours Start 2024.06.28 @ 16:41:05 End 2024.06.29 @ 02:42:15 Sessions 5 Manual Loads 0 Difficulty Rogue Special Mode None Game No. 222 Rogue 222 Adventurer 0 Explorer 0 Win Type - Total 16 Types 15/0/0/1/0/0/0/0/0 Lore% 74 Gallery% 84 Achievement% 81 Wizard Run 0 Options --------- Layout 1 ASCII 0 Keyboard 0 Movement Numpad Keybinds 0 Fullscreen 1 Font 24/Smallcaps Map View 50x35 Zoom Use 0% Tactical HUD 1 Map Filters NONE Filters NONE Steam 1 RUN: 61537bb4-0a32-488b-b389-627c6f9d6256